Workbook

Sheet Indice
A5: INDICE CUADROS GASTOS DEL PRESUPUESTO GENERAL DE LA NACIÓN - PGN
A7: CUADROS
A8: Cuadro No. 1. Ejecución del Presupuesto General de la Nación
A9: Cuadro No. 2. Ejecución del Presupuesto recursos Nación
A10: Cuadro No. 3. Ejecución del Presupuesto recursos Propios
A11: Cuadro No. 4. Ejecución Presupuesto General de la Nación por sectores
A12: Cuadro No. 5. Ejecución del Presupuesto recursos Nación por sectores
A13: Cuadro No. 6. Ejecución del Presupuesto recursos Propios por sectores
A14: Cuadro No. 7. Ejecución del Presupuesto General de la Nación detallado por sector, entidad y rubro presupuestal
A15: Cuadro No. 8. Rezago presupuestal del Presupuesto General de la Nación de 2025 ejecutado en 2026
A16: Cuadro No. 9. Reservas presupuestales del PGN de 2025 que se ejecutan en el 2026
A17: Cuadro No. 10. Cuentas por pagar del PGN de 2025 que se ejecutan en el 2026

Sheet CUA1
A5: Cuadro No. 1 Ejecución del Presupuesto General de la Nación
A6: Acumulada a Mayo 2026
A7: Miles de millones de pesos corrientes
B8: Concepto | C8: Apropiación Vigente | D8: Compromiso | E8: Obligación | F8: Pago | G8: Apropiación sin comprometer | H8: Porcentaje de ejecución
C9: Vigente | H9: Comp./Apro. | I9: Oblig./Apro. | J9: Pago/Apro. | K9: Oblig./Comp. | L9: Pago/Oblig.
C10: (1) | D10: (2) | E10: (3) | F10: (4) | G10: (5)=(1-2) | H10: (6)=(2/1) | I10: (7)=(3/1) | J10: (8)=(4/1) | K10: (9)=(3/2) | L10: (10)=(4/3)
A11: I. | B11: FUNCIONAMIENTO | C11: 365820.6287 | D11: 157601.5213 | E11: 121197.1064 | F11: 120048.3578 | G11: 208219.1074 | H11: 43.08163863 | I11: 33.13020014 | J11: 32.8161805 | K11: 76.90097498 | L11: 99.052165
B12: Gastos de Personal | C12: 66677.79584 | D12: 23913.13123 | E12: 22922.6083 | F12: 22888.51442 | G12: 42764.6646 | H12: 35.86370985 | I12: 34.37817345 | J12: 34.32704116 | K12: 95.85782841 | L12: 99.85126525
B13: Adquisición de Bienes y Servicios | C13: 18872.93498 | D13: 12231.3504 | E13: 5848.094538 | F13: 5726.660368 | G13: 6641.584573 | H13: 64.80894688 | I13: 30.98667242 | J13: 30.34324219 | K13: 47.81233752 | L13: 97.92352588
B14: Transferencias | C14: 275670.748 | D14: 119347.2237 | E14: 91463.64738 | F14: 90588.11751 | G14: 156323.5243 | H14: 43.29339422 | I14: 33.1785828 | J14: 32.86098296 | K14: 76.6365941 | L14: 99.04275644
B15: Gastos de Comercialización y Producción | C15: 2136.320862 | D15: 1135.17101 | E15: 566.5670712 | F15: 449.6211426 | G15: 1001.149852 | H15: 53.13672821 | I15: 26.52069178 | J15: 21.04651743 | K15: 49.91028366 | L15: 79.35885537
B16: Adquisición de Activos Financieros | C16: 759.543205 | D16: 620.8339462 | E16: 47.40869014 | F16: 47.40869014 | G16: 138.7092588 | H16: 81.73780531 | I16: 6.241737116 | J16: 6.241737116 | K16: 7.636291545 | L16: 100
B17: Disminución de Pasivos | C17: 369.8933692 | D17: 135.5935183 | E17: 134.5488349 | F17: 134.3059978 | G17: 234.2998509 | H17: 36.6574612 | I17: 36.37503293 | J17: 36.30938237 | K17: 99.22954766 | L17: 99.8195175
B18: Gastos por Tributos, Multas, Sanciones e Intereses de Mora | C18: 1333.392512 | D18: 218.2174937 | E18: 214.2316267 | F18: 213.7297175 | G18: 1115.175018 | H18: 16.36558565 | I18: 16.0666589 | J18: 16.02901738 | K18: 98.17344298 | L18: 99.76571656
A19: II. | B19: SERVICIO DE LA DEUDA | C19: 100449.7085 | D19: 50218.29253 | E19: 44521.89713 | F19: 44357.92577 | G19: 50231.41594 | H19: 49.99346767 | I19: 44.32257475 | J19: 44.15933749 | K19: 88.6567322 | L19: 99.63170628
B20: Servicio de la Deuda Pública Externa | C20: 38406.045 | D20: 18397.45068 | E20: 12914.01821 | F20: 12750.04686 | G20: 20008.59432 | H20: 47.9024869 | I20: 33.62496246 | J20: 33.19802094 | K20: 70.19460707 | L20: 98.73028403
B21: Principal | C21: 17273.045 | D21: 8861.288836 | E21: 6999.677009 | F21: 6951.948433 | G21: 8411.756164 | H21: 51.30125485 | I21: 40.52370042 | J21: 40.24738217 | K21: 78.99163585 | L21: 99.31813174
B22: Intereses | C22: 19987.06239 | D22: 9430.202262 | E22: 5860.271347 | F22: 5745.904478 | G22: 10556.86013 | H22: 47.18153212 | I22: 29.32032347 | J22: 28.74811898 | K22: 62.14364426 | L22: 98.04843732
B23: Comisiones y Otros Gastos | C23: 1145.937605 | D23: 105.9595767 | E23: 54.06985686 | F23: 52.19394929 | G23: 1039.978029 | H23: 9.246539791 | I23: 4.718394493 | J23: 4.554693819 | K23: 51.02875886 | L23: 96.53058528
B24: Servicio de la Deuda Pública Interna | C24: 62043.66347 | D24: 31820.84185 | E24: 31607.87891 | F24: 31607.87891 | G24: 30222.82161 | H24: 51.28781905 | I24: 50.94457217 | J24: 50.94457217 | K24: 99.33074385 | L24: 100
B25: Principal | C25: 10342.87442 | D25: 549.5388931 | E25: 549.5388931 | F25: 549.5388931 | G25: 9793.335528 | H25: 5.313212466 | I25: 5.313212466 | J25: 5.313212466 | K25: 100 | L25: 100
B26: Intereses | C26: 48777.53223 | D26: 31021.08114 | E26: 31021.08114 | F26: 31021.08114 | G26: 17756.4511 | H26: 63.59706963 | I26: 63.59706963 | J26: 63.59706963 | K26: 100 | L26: 100
B27: Comisiones y Otros Gastos | C27: 257.928674 | D27: 44.78317164 | E27: 37.25888334 | F27: 37.25888334 | G27: 213.1455023 | H27: 17.36261849 | I27: 14.4454212 | J27: 14.4454212 | K27: 83.19840238 | L27: 100
B28: Fondo de contingencias | C28: 2665.328142 | D28: 205.4386534 | E28: 0 | F28: 0 | G28: 2459.889488 | H28: 7.70781842 | I28: 0 | J28: 0 | K28: 0 | L28: 0
A29: III. | B29: INVERSIÓN | C29: 89458.21709 | D29: 51947.09567 | E29: 21491.30516 | F29: 21279.3815 | G29: 37511.12143 | H29: 58.06855687 | I29: 24.02384695 | J29: 23.78695015 | K29: 41.37152402 | L29: 99.01390979
A30: IV. | B30: TOTAL (I + II + III) | C30: 555728.5543 | D30: 259766.9095 | E30: 187210.3087 | F30: 185685.6651 | G30: 295961.6448 | H30: 46.74348789 | I30: 33.6873654 | J30: 33.41301499 | K30: 72.06857452 | L30: 99.18559848
A31: V. | B31: TOTAL SIN DEUDA (I + III) | C31: 455278.8458 | D31: 209548.617 | E31: 142688.4116 | F31: 141327.7394 | G31: 245730.2289 | H31: 46.02643388 | I31: 31.34088327 | J31: 31.04201758 | K31: 68.09322518 | L31: 99.04640311
A32: Fuente: Ministerio de Hacienda y Crèdito Pùblico. Ejecución de ingresos y gastos de las entidades que conforman el Presupuesto General de la Nación
C35: =+C30-'CUA2'!C30-'CUA3'!C28 -> -3.637978807e-11 | D35: =+D30-'CUA2'!D30-'CUA3'!D28 -> -4.547473509e-11 | E35: =+E30-'CUA2'!E30-'CUA3'!E28 -> 1.455191523e-11 | F35: =+F30-'CUA2'!F30-'CUA3'!F28 -> -2.182787284e-11 | G35: =+G30-'CUA2'!G30-'CUA3'!G28 -> 1.236912794e-10

Sheet CUA2
A5: Cuadro No. 2 Ejecución del Presupuesto recursos Nación
A6: =+'CUA1'!A6 -> Acumulada a Mayo 2026
A7: Miles de millones de pesos corrientes
B8: Concepto | C8: Apropiación Vigente | D8: Compromiso | E8: Obligación | F8: Pago | G8: Apropiación sin comprometer | H8: Porcentaje de ejecución
C9: Vigente | H9: Comp./Apro. | I9: Oblig./Apro. | J9: Pago/Apro. | K9: Oblig./Comp. | L9: Pago/Oblig.
C10: (1) | D10: (2) | E10: (3) | F10: (4) | G10: (5)=(1-2) | H10: (6)=(2/1) | I10: (7)=(3/1) | J10: (8)=(4/1) | K10: (9)=(3/2) | L10: (10)=(4/3)
A11: I. | B11: FUNCIONAMIENTO | C11: 352135.7004 | D11: 151441.4604 | E11: 116237.4405 | F11: 115327.5347 | G11: 200694.2399 | H11: 43.0065626 | I11: 33.00927465 | J11: 32.75087832 | K11: 76.75404092 | L11: 99.2172008
B12: Gastos de Personal | C12: 62422.55126 | D12: 22604.00923 | E12: 21638.58166 | F12: 21612.01699 | G12: 39818.54203 | H12: 36.21128706 | I12: 34.66468643 | J12: 34.62213024 | K12: 95.72895426 | L12: 99.87723473
B13: Adquisición de Bienes y Servicios | C13: 17396.32697 | D13: 11236.35775 | E13: 5403.635882 | F13: 5292.475369 | G13: 6159.969219 | H13: 64.5904033 | I13: 31.06193561 | J13: 30.42294721 | K13: 48.0906358 | L13: 97.94285708
B14: Transferencias | C14: 270014.2503 | D14: 116611.4626 | E14: 88845.15799 | F14: 88073.42115 | G14: 153402.7876 | H14: 43.18715124 | I14: 32.90387744 | J14: 32.61806407 | K14: 76.1890435 | L14: 99.13136871
B15: Gastos de Comercialización y Producción | C15: 124.267597 | D15: 82.2169982 | E15: 20.38070993 | F15: 20.32544945 | G15: 42.0505988 | H15: 66.16125216 | I15: 16.40066311 | J15: 16.35619416 | K15: 24.78892489 | L15: 99.72885887
B16: Adquisición de Activos Financieros | C16: 626.619 | D16: 582.4073001 | E16: 9.353457342 | F16: 9.353457342 | G16: 44.21169995 | H16: 92.94440482 | I16: 1.49268652 | J16: 1.49268652 | K16: 1.605999331 | L16: 100
B17: Disminución de Pasivos | C17: 353.6373692 | D17: 132.7216598 | E17: 131.7426209 | F17: 131.5921994 | G17: 220.9157094 | H17: 37.53043976 | I17: 37.2535915 | J17: 37.21105598 | K17: 99.26233676 | L17: 99.8858217
B18: Gastos por Tributos, Multas, Sanciones e Intereses de Mora | C18: 1198.047888 | D18: 192.2848427 | E18: 188.5881686 | F18: 188.3501182 | G18: 1005.763045 | H18: 16.04984614 | I18: 15.74128801 | J18: 15.72141815 | K18: 98.07750103 | L18: 99.87377235
A19: II. | B19: SERVICIO DE LA DEUDA | C19: 100449.7085 | D19: 50218.29253 | E19: 44521.89713 | F19: 44357.92577 | G19: 50231.41594 | H19: 49.99346767 | I19: 44.32257475 | J19: 44.15933749 | K19: 88.6567322 | L19: 99.63170628
B20: Servicio de la Deuda Pública Externa | C20: 38406.045 | D20: 18397.45068 | E20: 12914.01821 | F20: 12750.04686 | G20: 20008.59432 | H20: 47.9024869 | I20: 33.62496246 | J20: 33.19802094 | K20: 70.19460707 | L20: 98.73028403
B21: Principal | C21: 17273.045 | D21: 8861.288836 | E21: 6999.677009 | F21: 6951.948433 | G21: 8411.756164 | H21: 51.30125485 | I21: 40.52370042 | J21: 40.24738217 | K21: 78.99163585 | L21: 99.31813174
B22: Intereses | C22: 19987.06239 | D22: 9430.202262 | E22: 5860.271347 | F22: 5745.904478 | G22: 10556.86013 | H22: 47.18153212 | I22: 29.32032347 | J22: 28.74811898 | K22: 62.14364426 | L22: 98.04843732
B23: Comisiones y Otros Gastos | C23: 1145.937605 | D23: 105.9595767 | E23: 54.06985686 | F23: 52.19394929 | G23: 1039.978029 | H23: 9.246539791 | I23: 4.718394493 | J23: 4.554693819 | K23: 51.02875886 | L23: 96.53058528
B24: Servicio de la Deuda Pública Interna | C24: 62043.66347 | D24: 31820.84185 | E24: 31607.87891 | F24: 31607.87891 | G24: 30222.82161 | H24: 51.28781905 | I24: 50.94457217 | J24: 50.94457217 | K24: 99.33074385 | L24: 100
B25: Principal | C25: 10342.87442 | D25: 549.5388931 | E25: 549.5388931 | F25: 549.5388931 | G25: 9793.335528 | H25: 5.313212466 | I25: 5.313212466 | J25: 5.313212466 | K25: 100 | L25: 100
B26: Intereses | C26: 48777.53223 | D26: 31021.08114 | E26: 31021.08114 | F26: 31021.08114 | G26: 17756.4511 | H26: 63.59706963 | I26: 63.59706963 | J26: 63.59706963 | K26: 100 | L26: 100
B27: Comisiones y Otros Gastos | C27: 257.928674 | D27: 44.78317164 | E27: 37.25888334 | F27: 37.25888334 | G27: 213.1455023 | H27: 17.36261849 | I27: 14.4454212 | J27: 14.4454212 | K27: 83.19840238 | L27: 100
B28: Fondo de contingencias | C28: 2665.328142 | D28: 205.4386534 | E28: 0 | F28: 0 | G28: 2459.889488 | H28: 7.70781842 | I28: 0 | J28: 0 | K28: 0 | L28: 0
A29: III. | B29: INVERSIÓN | C29: 73456.3086 | D29: 44674.92576 | E29: 18509.00431 | F29: 18352.6396 | G29: 28781.38284 | H29: 60.81836484 | I29: 25.19729709 | J29: 24.98442946 | K29: 41.43040865 | L29: 99.15519657
A30: IV. | B30: TOTAL (I + II + III) | C30: 526041.7174 | D30: 246334.6787 | E30: 179268.3419 | F30: 178038.1001 | G30: 279707.0387 | H30: 46.82797401 | I30: 34.07873102 | J30: 33.84486329 | K30: 72.77430156 | L30: 99.31374285
A31: V. | B31: TOTAL SIN DEUDA (I + III) | C31: 425592.0089 | D31: 196116.3862 | E31: 134746.4448 | F31: 133680.1743 | G31: 229475.6228 | H31: 46.08084316 | I31: 31.66094333 | J31: 31.41040516 | K31: 68.70738719 | L31: 99.20868379
A32: Fuente: Ministerio de Hacienda y Crèdito Pùblico. Ejecución de ingresos y gastos de las entidades que conforman el Presupuesto General de la Nación
C34: =+C30-'CUA5'!B11 -> 0 | D34: =+D31+'CUA3'!D29-'CUA1'!D31 -> 0 | E34: =+E31+'CUA3'!E29-'CUA1'!E31 -> 0 | F34: =+F31+'CUA3'!F29-'CUA1'!F31 -> 0 | G34: =+G31+'CUA3'!G29-'CUA1'!G31 -> 0
C40: =+C11/'CUA1'!C11 -> 0.9625911518
C41: =+C19/'CUA1'!C19 -> 1

Sheet CUA3
A5: Cuadro No. 3 Ejecución del Presupuesto recursos Propios
A6: =+'CUA1'!A6 -> Acumulada a Mayo 2026
A7: Miles de millones de pesos corrientes
B8: Concepto | C8: Apropiación Vigente | D8: Compromiso | E8: Obligación | F8: Pago | G8: Apropiación sin comprometer | H8: Porcentaje de ejecución
C9: Vigente | H9: Comp./Apro. | I9: Oblig./Apro. | J9: Pago/Apro. | K9: Oblig./Comp. | L9: Pago/Oblig.
C10: (1) | D10: (2) | E10: (3) | F10: (4) | G10: (5)=(1-2) | H10: (6)=(2/1) | I10: (7)=(3/1) | J10: (8)=(4/1) | K10: (9)=(3/2) | L10: (10)=(4/3)
A11: I. | B11: FUNCIONAMIENTO | C11: 13684.92838 | D11: 6160.060884 | E11: 4959.66596 | F11: 4720.823114 | G11: 7524.867498 | H11: 45.01346819 | I11: 36.24181159 | J11: 34.49651312 | K11: 80.51326202 | L11: 95.18429572
B12: Gastos de Personal | C12: 4255.244576 | D12: 1309.122003 | E12: 1284.026648 | F12: 1276.497427 | G12: 2946.122572 | H12: 30.76490622 | I12: 30.17515504 | J12: 29.99821526 | K12: 98.08303922 | L12: 99.41362428
B13: Adquisición de Bienes y Servicios | C13: 1476.60801 | D13: 994.9926554 | E13: 444.4586563 | F13: 434.1849998 | G13: 481.6153541 | H13: 67.38366913 | I13: 30.09997599 | J13: 29.4042154 | K13: 44.66954142 | L13: 97.6885012
B14: Transferencias | C14: 5656.497703 | D14: 2735.761058 | E14: 2618.48939 | F14: 2514.696363 | G14: 2920.736645 | H14: 48.36492829 | I14: 46.29170783 | J14: 44.45677335 | K14: 95.71338047 | L14: 96.03614867
B15: Gastos de Comercialización y Producción | C15: 2012.053265 | D15: 1052.954012 | E15: 546.1863612 | F15: 429.2956931 | G15: 959.0992528 | H15: 52.33231298 | I15: 27.14572078 | J15: 21.33619923 | K15: 51.8718154 | L15: 78.59875742
B16: Adquisición de Activos Financieros | C16: 132.924205 | D16: 38.42664611 | E16: 38.0552328 | F16: 38.0552328 | G16: 94.49755889 | H16: 28.90868982 | I16: 28.62927245 | J16: 28.62927245 | K16: 99.03344852 | L16: 100
B17: Disminución de Pasivos | C17: 16.256 | D17: 2.871858495 | E17: 2.806213965 | F17: 2.71379835 | G17: 13.38414151 | H17: 17.66645236 | I17: 17.26263512 | J17: 16.69413355 | K17: 97.71421433 | L17: 96.70675094
B18: Gastos por Tributos, Multas, Sanciones e Intereses de Mora | C18: 135.344624 | D18: 25.93265093 | E18: 25.64345811 | F18: 25.37959931 | G18: 109.411973 | H18: 19.16045882 | I18: 18.94678737 | J18: 18.75183407 | K18: 98.88483125 | L18: 98.97104826
A19: II. | B19: SERVICIO DE LA DEUDA | C19: 0 | D19: 0 | E19: 0 | F19: 0 | G19: 0 | H19: 0 | I19: 0 | J19: 0 | K19: 0 | L19: 0
B20: Servicio de la Deuda Pública Externa | C20: 0 | D20: 0 | E20: 0 | F20: 0 | G20: 0 | H20: 0 | I20: 0 | J20: 0 | K20: 0 | L20: 0
B21: Principal | C21: 0 | D21: 0 | E21: 0 | F21: 0 | G21: 0 | H21: 0 | I21: 0 | J21: 0 | K21: 0 | L21: 0
B22: Intereses | C22: 0 | D22: 0 | E22: 0 | F22: 0 | G22: 0 | H22: 0 | I22: 0 | J22: 0 | K22: 0 | L22: 0
B23: Comisiones y Otros Gastos | C23: 0 | D23: 0 | E23: 0 | F23: 0 | G23: 0 | H23: 0 | I23: 0 | J23: 0 | K23: 0 | L23: 0
B24: Servicio de la Deuda Pública Interna | C24: 0 | D24: 0 | E24: 0 | F24: 0 | G24: 0 | H24: 0 | I24: 0 | J24: 0 | K24: 0 | L24: 0
B25: Principal | H25: 0 | I25: 0 | J25: 0 | K25: 0 | L25: 0
B26: Fondo de Contingencias | C26: 0 | D26: 0 | E26: 0 | F26: 0 | G26: 0 | H26: 0 | I26: 0 | J26: 0 | K26: 0 | L26: 0
A27: III. | B27: INVERSIÓN | C27: 16001.9085 | D27: 7272.169911 | E27: 2982.300854 | F27: 2926.741902 | G27: 8729.738587 | H27: 45.44564114 | I27: 18.63715728 | J27: 18.28995524 | K27: 41.00977962 | L27: 98.13704404
A28: IV. | B28: TOTAL (I + II + III) | C28: 29686.83688 | D28: 13432.23079 | E28: 7941.966814 | F28: 7647.565016 | G28: 16254.60608 | H28: 45.24641965 | I28: 26.75248578 | J28: 25.76079441 | K28: 59.12619382 | L28: 96.29308703
A29: V. | B29: TOTAL SIN DEUDA (I + III) | C29: 29686.83688 | D29: 13432.23079 | E29: 7941.966814 | F29: 7647.565016 | G29: 16254.60608 | H29: 45.24641965 | I29: 26.75248578 | J29: 25.76079441 | K29: 59.12619382 | L29: 96.29308703
A30: Fuente: Ministerio de Hacienda y Crèdito Pùblico. Ejecución de ingresos y gastos de las entidades que conforman el Presupuesto General de la Nación
C33: =+C28-'CUA6'!B11 -> 0 | D33: =+D28-'CUA6'!C11 -> 0 | E33: =+E28-'CUA6'!D11 -> 0 | F33: =+F28-'CUA6'!E11 -> 0
C37: =+C11/'CUA1'!C11 -> 0.03740884823
C38: =+C27/'CUA1'!C29 -> 0.1788757815

Sheet CUA4
A5: Cuadro No. 4 Ejecución Presupuesto General de la Nación por sectores
A6: =+'CUA1'!A6 -> Acumulada a Mayo 2026
A7: Miles de millones de pesos
A8: Sector | B8: Apropiación Vigente | C8: Compromiso | D8: Obligación | E8: Pago | F8: Apropiación sin comprometer | G8: Porcentaje de ejecución
B9: Vigente | G9: Comp./Apro. | H9: Oblig./Apro. | I9: Pago/Apro. | J9: Oblig./Comp. | K9: Pago/Oblig.
B10: (1) | C10: (2) | D10: (3) | E10: (4) | F10: (5)=(1-2) | G10: (6)=(2/1) | H10: (7)=(3/1) | I10: (8)=(4/1) | J10: (9)=(3/2) | K10: (10)=(4/3)
A11: TOTAL PGN | B11: 555728.5543 | C11: 259766.9095 | D11: 187210.3087 | E11: 185685.6651 | F11: 295961.6448 | G11: 46.74348789 | H11: 33.6873654 | I11: 33.41301499 | J11: 72.06857452 | K11: 99.18559848
A12: SERVICIO DE LA DEUDA PÚBLICA NACIONAL | B12: 97191.50591 | C12: 49486.69832 | D12: 43995.74156 | E12: 43831.77021 | F12: 47704.80759 | G12: 50.91669056 | H12: 45.26706439 | I12: 45.09835484 | J12: 88.9041764 | K12: 99.62730177
A13: EDUCACIÓN | B13: 88238.54284 | C13: 48887.34455 | D13: 34936.97853 | E13: 34193.53676 | F13: 39351.19829 | G13: 55.40361726 | H13: 39.59378454 | I13: 38.75124822 | J13: 71.46425901 | K13: 97.87204903
A14: SALUD Y PROTECCIÓN SOCIAL | B14: 78879.75986 | C14: 35095.59343 | D14: 29306.74184 | E14: 29297.75719 | F14: 43784.16643 | G14: 44.49252063 | H14: 37.1536905 | I14: 37.14230018 | J14: 83.50547456 | K14: 99.9693427
A15: DEFENSA Y POLICÍA | B15: 66076.99718 | C15: 28089.09993 | D15: 22944.4217 | E15: 22725.5672 | F15: 37987.89725 | G15: 42.50964955 | H15: 34.72376573 | I15: 34.39255439 | J15: 81.68443189 | K15: 99.04615375
A16: TRABAJO | B16: 56790.94489 | C16: 15157.05599 | D16: 13253.04803 | E16: 13242.2502 | F16: 41633.8889 | G16: 26.68921254 | H16: 23.33655137 | I16: 23.31753808 | J16: 87.43814126 | K16: 99.91852572
A17: HACIENDA | B17: 33350.53077 | C17: 10983.15543 | D17: 7102.093097 | E17: 7097.801024 | F17: 22367.37534 | G17: 32.93247566 | H17: 21.29529256 | I17: 21.28242298 | J17: 64.66350351 | K17: 99.93956609
A18: TRANSPORTE | B18: 20524.68267 | C18: 11305.52281 | D18: 2351.554672 | E18: 2252.215831 | F18: 9219.159864 | G18: 55.08257052 | H18: 11.45720355 | I18: 10.97320659 | J18: 20.80005244 | K18: 95.77560995
A19: MINAS Y ENERGÍA | B19: 13388.54087 | C19: 7326.430881 | D19: 5808.541226 | E19: 5802.036453 | F19: 6062.109984 | G19: 54.72165305 | H19: 43.38442317 | I19: 43.33583855 | J19: 79.28200402 | K19: 99.88801367
A20: INCLUSIÓN SOCIAL Y RECONCILIACIÓN | B20: 13222.41352 | C20: 5060.651963 | D20: 3751.531048 | E20: 3741.941578 | F20: 8161.761558 | G20: 38.27328464 | H20: 28.3725134 | I20: 28.29998904 | J20: 74.13137824 | K20: 99.74438514
A21: IGUALDAD Y EQUIDAD | B21: 11320.13053 | C21: 7113.919382 | D21: 4018.003408 | E21: 4017.676788 | F21: 4206.211152 | G21: 62.84308613 | H21: 35.49432046 | I21: 35.49143516 | J21: 56.48086789 | K21: 99.9918711
A22: RAMA JUDICIAL | B22: 10926.78919 | C22: 3686.609907 | D22: 3205.212863 | E22: 3191.75739 | F22: 7240.179281 | G22: 33.73918764 | H22: 29.33352888 | I22: 29.21038683 | J22: 86.94201293 | K22: 99.58020034
A23: PRESIDENCIA DE LA REPÚBLICA | B23: 9555.734489 | C23: 8844.394017 | D23: 335.6354513 | E23: 334.5846619 | F23: 711.3404725 | G23: 92.55587864 | H23: 3.512398253 | I23: 3.501401826 | J23: 3.79489483 | K23: 99.68692538
A24: FISCALÍA | B24: 7374.1743 | C24: 2826.067634 | D24: 2429.320082 | E24: 2423.166512 | F24: 4548.106667 | G24: 38.32385185 | H24: 32.94362165 | I24: 32.86017408 | J24: 85.96114447 | K24: 99.74669581
A25: VIVIENDA, CIUDAD Y TERRITORIO | B25: 7276.872469 | C25: 3769.846615 | D25: 2124.968748 | E25: 2124.670952 | F25: 3507.025854 | G25: 51.80586346 | H25: 29.20167637 | I25: 29.197584 | J25: 56.36751213 | K25: 99.98598583
A26: REGISTRADURÍA | B26: 7087.414578 | C26: 3179.061628 | D26: 1688.7 | E26: 1680.274062 | F26: 3908.35295 | G26: 44.85502566 | H26: 23.8267422 | I26: 23.70785628 | J26: 53.11944837 | K26: 99.50103999
A27: JUSTICIA Y DEL DERECHO | B27: 5651.496531 | C27: 2784.004125 | D27: 1570.863658 | E27: 1550.728076 | F27: 2867.492406 | G27: 49.26136129 | H27: 27.79553432 | I27: 27.43924671 | J27: 56.42461676 | K27: 98.71818399
A28: ORGANISMOS DE CONTROL | B28: 5031.040779 | C28: 1862.56853 | D28: 1496.923161 | E28: 1481.360026 | F28: 3168.472248 | G28: 37.02153515 | H28: 29.75374733 | I28: 29.44440506 | J28: 80.36875621 | K28: 98.96032501
A29: INTERIOR | B29: 4335.376295 | C29: 3023.231697 | D29: 1278.171002 | E29: 1266.61663 | F29: 1312.144598 | G29: 69.73400903 | H29: 29.48235437 | I29: 29.21584065 | J29: 42.27830119 | K29: 99.09602294
A30: AGRICULTURA Y DESARROLLO RURAL | B30: 4124.074275 | C30: 2207.496854 | D30: 957.5062338 | E30: 930.0484839 | F30: 1916.577422 | G30: 53.52708769 | H30: 23.21748276 | I30: 22.55169092 | J30: 43.37520264 | K30: 97.13236855
A31: TECNOLOGÍAS DE LA INFORMACIÓN Y LAS COMUNICACIONES | B31: 2282.869134 | C31: 1659.474537 | D31: 773.7294142 | E31: 641.7701881 | F31: 623.3945974 | G31: 72.69249524 | H31: 33.89285013 | I31: 28.11243879 | J31: 46.62496453 | K31: 82.94504206
A32: RELACIONES EXTERIORES | B32: 1930.051807 | C32: 1019.958941 | D32: 670.055576 | E32: 665.3186427 | F32: 910.0928662 | G32: 52.84619497 | H32: 34.71697358 | I32: 34.47154321 | J32: 65.69436758 | K32: 99.29305367
A33: AMBIENTE Y DESARROLLO SOSTENIBLE | B33: 1796.378367 | C33: 949.5088331 | D33: 478.5041569 | E33: 477.126231 | F33: 846.8695339 | G33: 52.85683966 | H33: 26.63715872 | I33: 26.56045295 | J33: 50.39491369 | K33: 99.71203472
A34: COMERCIO, INDUSTRIA Y TURISMO | B34: 1769.598765 | C34: 1257.006212 | D34: 469.4267764 | E34: 467.8820386 | F34: 512.5925529 | G34: 71.03340243 | H34: 26.52730018 | I34: 26.44000707 | J34: 37.34482549 | K34: 99.67093104
A35: PLANEACIÓN | B35: 1626.964606 | C35: 749.4006051 | D35: 327.4361011 | E35: 322.7648433 | F35: 877.5640014 | G35: 46.06127276 | H35: 20.12558231 | I35: 19.83846742 | J35: 43.69306601 | K35: 98.57338341
A36: CONGRESO DE LA REPÚBLICA | B36: 1333.877651 | C36: 825.0323963 | D36: 575.5258202 | E36: 571.9553228 | F36: 508.8452545 | G36: 61.85217931 | H36: 43.14682234 | I36: 42.87914431 | J36: 69.75796621 | K36: 99.37961126
A37: CULTURA | B37: 1154.149937 | C37: 678.1640144 | D37: 323.8382966 | E37: 319.3421322 | F37: 475.9859226 | G37: 58.75874465 | H37: 28.05859848 | I37: 27.66903345 | J37: 47.75220887 | K37: 98.61160199
A38: SISTEMA INTEGRAL DE VERDAD, JUSTICIA, REPARACIÓN Y NO REPETICIÓN | B38: 940.9506925 | C38: 523.0972226 | D38: 348.1201061 | E38: 348.0704161 | F38: 417.8534699 | G38: 55.59241592 | H38: 36.99663637 | I38: 36.99135554 | J38: 66.54979057 | K38: 99.98572619
A39: INFORMACIÓN ESTADÍSTICA | B39: 831.5370011 | C39: 421.6179551 | D39: 230.2155547 | E39: 230.0248397 | F39: 409.919046 | G39: 50.7034509 | H39: 27.6855455 | I39: 27.66261025 | J39: 54.60288206 | K39: 99.91715804
A40: EMPLEO PÚBLICO | B40: 661.553093 | C40: 305.3348092 | D40: 149.3250592 | E40: 147.4825298 | F40: 356.2182838 | G40: 46.15424105 | H40: 22.57189343 | I40: 22.29337771 | J40: 48.90535067 | K40: 98.76609501
A41: DEPORTE Y RECREACIÓN | B41: 496.0871963 | C41: 402.0279131 | D41: 177.341512 | E41: 177.3338772 | F41: 94.05928316 | G41: 81.03976803 | H41: 35.74805264 | I41: 35.74651362 | J41: 44.11174107 | K41: 99.99569482
A42: CIENCIA, TECNOLOGÍA E INNOVACIÓN | B42: 379.8557652 | C42: 225.3794508 | D42: 76.61621651 | E42: 76.61621651 | F42: 154.4763144 | G42: 59.33290249 | H42: 20.169818 | I42: 20.169818 | J42: 33.99432213 | K42: 100
A43: INTELIGENCIA | B43: 177.6583363 | C43: 62.15290886 | D43: 54.21782245 | E43: 54.21782245 | F43: 115.5054274 | G43: 34.98451587 | H43: 30.51802892 | I43: 30.51802892 | J43: 87.23296051 | K43: 100
A44: Fuente: Ministerio de Hacienda y Crèdito Pùblico. Ejecución de ingresos y gastos de las entidades que conforman el Presupuesto General de la Nación
B47: =+B11-'CUA1'!C30 -> 0 | C47: =+C11-'CUA1'!D30 -> 0 | D47: =+D11-'CUA1'!E30 -> 0 | E47: =+E11-'CUA1'!F30 -> 0 | F47: =+F11-'CUA1'!G30 -> 0

Sheet CUA5
A5: Cuadro No. 5 Ejecución del Presupuesto recursos Nación por sectores
A6: =+'CUA1'!A6 -> Acumulada a Mayo 2026
A7: Miles de millones de pesos
A8: Sector | B8: Apropiación Vigente | C8: Compromiso | D8: Obligación | E8: Pago | F8: Apropiación sin comprometer | G8: Porcentaje de ejecución
B9: Vigente | G9: Comp./Apro. | H9: Oblig./Apro. | I9: Pago/Apro. | J9: Oblig./Comp. | K9: Pago/Oblig.
B10: (1) | C10: (2) | D10: (3) | E10: (4) | F10: (5)=(1-2) | G10: (6)=(2/1) | H10: (7)=(3/1) | I10: (8)=(4/1) | J10: (9)=(3/2) | K10: (10)=(4/3)
A11: TOTAL RECURSOS NACIÓN | B11: 526041.7174 | C11: 246334.6787 | D11: 179268.3419 | E11: 178038.1001 | F11: 279707.0387 | G11: 46.82797401 | H11: 34.07873102 | I11: 33.84486329 | J11: 72.77430156 | K11: 99.31374285
A12: SERVICIO DE LA DEUDA PÚBLICA NACIONAL | B12: 97191.50591 | C12: 49486.69832 | D12: 43995.74156 | E12: 43831.77021 | F12: 47704.80759 | G12: 50.91669056 | H12: 45.26706439 | I12: 45.09835484 | J12: 88.9041764 | K12: 99.62730177
A13: EDUCACIÓN | B13: 88159.15625 | C13: 48850.96 | D13: 34922.13798 | E13: 34178.92421 | F13: 39308.19625 | G13: 55.41223632 | H13: 39.61260459 | I13: 38.7695682 | J13: 71.48710685 | K13: 97.87179764
A14: SALUD Y PROTECCIÓN SOCIAL | B14: 77721.72467 | C14: 34671.7374 | D14: 29040.98573 | E14: 29032.72547 | F14: 43049.98727 | G14: 44.61009782 | H14: 37.36533878 | I14: 37.35471078 | J14: 83.75982256 | K14: 99.97155655
A15: DEFENSA Y POLICÍA | B15: 62922.47718 | C15: 26882.69741 | D15: 22134.22765 | E15: 22024.63875 | F15: 36039.77977 | G15: 42.72352046 | H15: 35.17698069 | I15: 35.00281575 | J15: 82.33633445 | K15: 99.50488945
A16: TRABAJO | B16: 53737.78754 | C16: 14153.61878 | D16: 12616.15943 | E16: 12606.50227 | F16: 39584.16876 | G16: 26.3382983 | H16: 23.47725876 | I16: 23.45928786 | J16: 89.13734096 | K16: 99.92345399
A17: HACIENDA | B17: 32751.4959 | C17: 10786.62378 | D17: 6971.337867 | E17: 6967.055765 | F17: 21964.87213 | G17: 32.93475146 | H17: 21.28555559 | I17: 21.27248107 | J17: 64.62947083 | K17: 99.93857561
A18: TRANSPORTE | B18: 13281.41409 | C18: 8960.157899 | D18: 1307.5071 | E18: 1230.724791 | F18: 4321.256194 | G18: 67.46388476 | H18: 9.844637711 | I18: 9.266519232 | J18: 14.59245602 | K18: 94.12757995
A19: INCLUSIÓN SOCIAL Y RECONCILIACIÓN | B19: 13154.77642 | C19: 5060.43589 | D19: 3751.314975 | E19: 3741.725505 | F19: 8094.340531 | G19: 38.46842948 | H19: 28.51675205 | I19: 28.4438548 | J19: 74.13027369 | K19: 99.74437042
A20: RAMA JUDICIAL | B20: 10926.78919 | C20: 3686.609907 | D20: 3205.212863 | E20: 3191.75739 | F20: 7240.179281 | G20: 33.73918764 | H20: 29.33352888 | I20: 29.21038683 | J20: 86.94201293 | K20: 99.58020034
A21: MINAS Y ENERGÍA | B21: 9967.556262 | C21: 5432.748131 | D21: 4080.131161 | E21: 4076.330507 | F21: 4534.808131 | G21: 54.50431368 | H21: 40.93411718 | I21: 40.89598694 | J21: 75.10252753 | K21: 99.90684971
A22: PRESIDENCIA DE LA REPÚBLICA | B22: 9501.731992 | C22: 8839.654217 | D22: 334.4741746 | E22: 333.4233852 | F22: 662.0777751 | G22: 93.03203063 | H22: 3.520139011 | I22: 3.509080087 | J22: 3.783792515 | K22: 99.6858384
A23: FISCALÍA | B23: 7331.60976 | C23: 2809.640521 | D23: 2420.105178 | E23: 2413.965096 | F23: 4521.96924 | G23: 38.32228682 | H23: 33.00919248 | I23: 32.92544441 | J23: 86.13575864 | K23: 99.74628864
A24: VIVIENDA, CIUDAD Y TERRITORIO | B24: 7276.872469 | C24: 3769.846615 | D24: 2124.968748 | E24: 2124.670952 | F24: 3507.025854 | G24: 51.80586346 | H24: 29.20167637 | I24: 29.197584 | J24: 56.36751213 | K24: 99.98598583
A25: REGISTRADURÍA | B25: 6828.103498 | C25: 3049.725814 | D25: 1640.262408 | E25: 1631.836471 | F25: 3778.377683 | G25: 44.66431734 | H25: 24.02222533 | I25: 23.89882448 | J25: 53.78393036 | K25: 99.48630551
A26: IGUALDAD Y EQUIDAD | B26: 6685.228894 | C26: 4402.758353 | D26: 2540.515442 | E26: 2540.258672 | F26: 2282.470541 | G26: 65.85800461 | H26: 38.00192158 | I26: 37.99808073 | J26: 57.70281351 | K26: 99.989893
A27: ORGANISMOS DE CONTROL | B27: 5008.764822 | C27: 1857.498062 | D27: 1491.852693 | E27: 1476.289558 | F27: 3151.26676 | G27: 37.08495264 | H27: 29.7848421 | I27: 29.47412406 | J27: 80.31516822 | K27: 98.95679139
A28: JUSTICIA Y DEL DERECHO | B28: 4636.128941 | C28: 2456.038876 | D28: 1359.26876 | E28: 1352.007634 | F28: 2180.090065 | G28: 52.9760692 | H28: 29.31904563 | I28: 29.16242519 | J28: 55.34394317 | K28: 99.46580648
A29: INTERIOR | B29: 4101.027509 | C29: 2884.009848 | D29: 1223.015139 | E29: 1215.632048 | F29: 1217.017661 | G29: 70.32407955 | H29: 29.82216375 | I29: 29.64213346 | J29: 42.40676016 | K29: 99.39632052
A30: AGRICULTURA Y DESARROLLO RURAL | B30: 4024.542259 | C30: 2162.14217 | D30: 936.0841236 | E30: 914.4210719 | F30: 1862.400089 | G30: 53.72392761 | H30: 23.25939357 | I30: 22.72111989 | J30: 43.29429103 | K30: 97.68577939
A31: AMBIENTE Y DESARROLLO SOSTENIBLE | B31: 1501.1883 | C31: 717.1742325 | D31: 336.6237822 | E31: 335.289512 | F31: 784.0140672 | G31: 47.77376913 | H31: 22.42382133 | I31: 22.3349404 | J31: 46.93751768 | K31: 99.60363165
A32: CONGRESO DE LA REPÚBLICA | B32: 1333.877651 | C32: 825.0323963 | D32: 575.5258202 | E32: 571.9553228 | F32: 508.8452545 | G32: 61.85217931 | H32: 43.14682234 | I32: 42.87914431 | J32: 69.75796621 | K32: 99.37961126
A33: RELACIONES EXTERIORES | B33: 1278.947846 | C33: 581.9105219 | D33: 452.6177859 | E33: 448.1625865 | F33: 697.0373239 | G33: 45.49915962 | H33: 35.38985482 | I33: 35.04150603 | J33: 77.78133731 | K33: 99.01568178
A34: PLANEACIÓN | B34: 1270.952701 | C34: 615.1550721 | D34: 235.66274 | E34: 231.3747003 | F34: 655.797629 | G34: 48.40109876 | H34: 18.54221167 | I34: 18.20482384 | J34: 38.30948499 | K34: 98.18043375
A35: COMERCIO, INDUSTRIA Y TURISMO | B35: 1190.811716 | C35: 1004.506069 | D35: 328.4455294 | E35: 327.2589024 | F35: 186.3056479 | G35: 84.35473507 | H35: 27.5816508 | I35: 27.48200223 | J35: 32.69721703 | K35: 99.63871424
A36: CULTURA | B36: 1130.162562 | C36: 668.9096412 | D36: 320.7364247 | E36: 316.2410108 | F36: 461.2529207 | G36: 59.18702882 | H36: 28.37967169 | I36: 27.98190468 | J36: 47.94914065 | K36: 98.59840868
A37: SISTEMA INTEGRAL DE VERDAD, JUSTICIA, REPARACIÓN Y NO REPETICIÓN | B37: 940.9506925 | C37: 523.0972226 | D37: 348.1201061 | E37: 348.0704161 | F37: 417.8534699 | G37: 55.59241592 | H37: 36.99663637 | I37: 36.99135554 | J37: 66.54979057 | K37: 99.98572619
A38: INFORMACIÓN ESTADÍSTICA | B38: 763.9395551 | C38: 380.8124662 | D38: 212.9110492 | E38: 212.8443251 | F38: 383.1270889 | G38: 49.84850747 | H38: 27.87014336 | I38: 27.86140915 | J38: 55.90968472 | K38: 99.96866103
A39: DEPORTE Y RECREACIÓN | B39: 496.0871963 | C39: 402.0279131 | D39: 177.341512 | E39: 177.3338772 | F39: 94.05928316 | G39: 81.03976803 | H39: 35.74805264 | I39: 35.74651362 | J39: 44.11174107 | K39: 99.99569482
A40: CIENCIA, TECNOLOGÍA E INNOVACIÓN | B40: 379.8557652 | C40: 225.3794508 | D40: 76.61621651 | E40: 76.61621651 | F40: 154.4763144 | G40: 59.33290249 | H40: 20.169818 | I40: 20.169818 | J40: 33.99432213 | K40: 100
A41: TECNOLOGÍAS DE LA INFORMACIÓN Y LAS COMUNICACIONES | B41: 305.7873296 | C41: 98.76165291 | D41: 33.80735474 | E41: 33.66287302 | F41: 207.0256767 | G41: 32.29749678 | H41: 11.05583897 | I41: 11.00858988 | J41: 34.23125651 | K41: 99.57263229
A42: INTELIGENCIA | B42: 177.6583363 | C42: 62.15290886 | D42: 54.21782245 | E42: 54.21782245 | F42: 115.5054274 | G42: 34.98451587 | H42: 30.51802892 | I42: 30.51802892 | J42: 87.23296051 | K42: 100
A43: EMPLEO PÚBLICO | B43: 62.80420005 | C43: 26.1571482 | D43: 20.41279284 | E43: 20.41279284 | F43: 36.64705185 | G43: 41.64872442 | H43: 32.50227345 | I43: 32.50227345 | J43: 78.03906099 | K43: 100
A44: Fuente: Ministerio de Hacienda y Crèdito Pùblico. Ejecución de ingresos y gastos de las entidades que conforman el Presupuesto General de la Nación
B47: =+B11-'CUA2'!C30 -> 0 | C47: =+C11-'CUA2'!D30 -> 0 | D47: =+D11-'CUA2'!E30 -> 0 | E47: =+E11-'CUA2'!F30 -> 0 | F47: =+F11-'CUA2'!G30 -> 0

Sheet CUA6
A5: Cuadro No. 6 Ejecución del Presupuesto recursos Propios por sectores
A6: =+'CUA1'!A6 -> Acumulada a Mayo 2026
A7: Miles de millones de pesos
A8: Sector | B8: Apropiación Vigente | C8: Compromiso | D8: Obligación | E8: Pago | F8: Apropiación sin comprometer | G8: Porcentaje de ejecución
B9: Vigente | G9: Comp./Apro. | H9: Oblig./Apro. | I9: Pago/Apro. | J9: Oblig./Comp. | K9: Pago/Oblig.
B10: (1) | C10: (2) | D10: (3) | E10: (4) | F10: (5)=(1-2) | G10: (6)=(2/1) | H10: (7)=(3/1) | I10: (8)=(4/1) | J10: (9)=(3/2) | K10: (10)=(4/3)
A11: TOTAL RECURSOS PROPIOS | B11: 29686.83688 | C11: 13432.23079 | D11: 7941.966814 | E11: 7647.565016 | F11: 16254.60608 | G11: 45.24641965 | H11: 26.75248578 | I11: 25.76079441 | J11: 59.12619382 | K11: 96.29308703
A12: TRANSPORTE | B12: 7243.268579 | C12: 2345.364909 | D12: 1044.047572 | E12: 1021.49104 | F12: 4897.90367 | G12: 32.37992466 | H12: 14.4140392 | I12: 14.10262547 | J12: 44.51535742 | K12: 97.83951106
A13: IGUALDAD Y EQUIDAD | B13: 4634.901639 | C13: 2711.161028 | D13: 1477.487966 | E13: 1477.418116 | F13: 1923.740611 | G13: 58.4944674 | H13: 31.87743949 | I13: 31.87593246 | J13: 54.49650353 | K13: 99.99527242
A14: MINAS Y ENERGÍA | B14: 3420.984603 | C14: 1893.68275 | D14: 1728.410065 | E14: 1725.705947 | F14: 1527.301853 | G14: 55.35490422 | H14: 50.52376042 | I14: 50.44471539 | J14: 91.27241956 | K14: 99.84354879
A15: DEFENSA Y POLICÍA | B15: 3154.52 | C15: 1206.402522 | D15: 810.1940548 | E15: 700.9284464 | F15: 1948.117478 | G15: 38.24361622 | H15: 25.68359227 | I15: 22.21981304 | J15: 67.15785485 | K15: 86.51364968
A16: TRABAJO | B16: 3053.157348 | C16: 1003.437204 | D16: 636.8885924 | E16: 635.7479333 | F16: 2049.720144 | G16: 32.86555817 | H16: 20.859999 | I16: 20.82263902 | J16: 63.47069748 | K16: 99.82090131
A17: TECNOLOGÍAS DE LA INFORMACIÓN Y LAS COMUNICACIONES | B17: 1977.081805 | C17: 1560.712884 | D17: 739.9220595 | E17: 608.1073151 | F17: 416.3689208 | G17: 78.94022798 | H17: 37.42495924 | I17: 30.75782265 | J17: 47.40923633 | K17: 82.18532037
A18: SALUD Y PROTECCIÓN SOCIAL | B18: 1158.035193 | C18: 423.856032 | D18: 265.7561175 | E18: 265.0317218 | F18: 734.179161 | G18: 36.60130837 | H18: 22.94888092 | I18: 22.88632706 | J18: 62.69961907 | K18: 99.72742087
A19: JUSTICIA Y DEL DERECHO | B19: 1015.36759 | C19: 327.9652484 | D19: 211.5948981 | E19: 198.7204418 | F19: 687.4023414 | G19: 32.30014939 | H19: 20.83924091 | I19: 19.57128076 | J19: 64.51747529 | K19: 93.91551665
A20: RELACIONES EXTERIORES | B20: 651.1039616 | C20: 438.0484193 | D20: 217.4377902 | E20: 217.1560562 | F20: 213.0555423 | G20: 67.27779973 | H20: 33.39524915 | I20: 33.35197895 | J20: 49.6378438 | K20: 99.87043009
A21: EMPLEO PÚBLICO | B21: 599.034869 | C21: 196.531654 | D21: 130.75523 | E21: 130.7452596 | F21: 402.503215 | G21: 32.80804911 | H21: 21.82764924 | I21: 21.82598482 | J21: 66.53138432 | K21: 99.99237471
A22: HACIENDA | B22: 598.748893 | C22: 279.177661 | D22: 128.9122663 | E22: 127.069737 | F22: 319.571232 | G22: 46.62683544 | H22: 21.53027218 | I22: 21.22254228 | J22: 46.1757097 | K22: 98.57071061
A23: COMERCIO, INDUSTRIA Y TURISMO | B23: 578.7870488 | C23: 252.5001438 | D23: 140.981247 | E23: 140.6231361 | F23: 326.2869051 | G23: 43.62574185 | H23: 24.35805143 | I23: 24.29617878 | J23: 55.83412544 | K23: 99.74598687
A24: PLANEACIÓN | B24: 356.0119053 | C24: 134.245533 | D24: 91.77336103 | E24: 91.39014298 | F24: 221.7663724 | G24: 37.70815833 | H24: 25.77817193 | I24: 25.67053001 | J24: 68.36232015 | K24: 99.58242997
A25: AMBIENTE Y DESARROLLO SOSTENIBLE | B25: 295.1900673 | C25: 232.3346006 | D25: 141.8803747 | E25: 141.836719 | F25: 62.85546668 | G25: 78.70678128 | H25: 48.06407479 | I25: 48.04928577 | J25: 61.06726004 | K25: 99.96923061
A26: REGISTRADURÍA | B26: 259.3110804 | C26: 129.3358134 | D26: 48.43759173 | E26: 48.43759173 | F26: 129.9752671 | G26: 49.87670143 | H26: 18.67933744 | I26: 18.67933744 | J26: 37.45102804 | K26: 100
A27: INTERIOR | B27: 234.3487853 | C27: 139.2218489 | D27: 55.15586332 | E27: 50.98458215 | F27: 95.12693639 | G27: 59.40796694 | H27: 23.53580082 | I27: 21.7558551 | J27: 39.61724669 | K27: 92.43728424
A28: AGRICULTURA Y DESARROLLO RURAL | B28: 99.532016 | C28: 45.35468369 | D28: 21.42211017 | E28: 15.62741199 | F28: 54.17733231 | G28: 45.56793433 | H28: 21.52283358 | I28: 15.70088964 | J28: 47.23241003 | K28: 72.9499189
A29: EDUCACIÓN | B29: 79.386581 | C29: 36.3845427 | D29: 14.84055537 | E29: 14.61254915 | F29: 43.0020383 | G29: 45.83210694 | H29: 18.69403517 | I29: 18.40682514 | J29: 40.78807722 | K29: 98.46362742
A30: INCLUSIÓN SOCIAL Y RECONCILIACIÓN | B30: 67.6371 | C30: 0.2160730993 | D30: 0.2160730993 | E30: 0.2160730993 | F30: 67.4210269 | G30: 0.3194594376 | H30: 0.3194594376 | I30: 0.3194594376 | J30: 100 | K30: 100
A31: INFORMACIÓN ESTADÍSTICA | B31: 67.597446 | C31: 40.80548892 | D31: 17.30450553 | E31: 17.18051459 | F31: 26.79195708 | G31: 60.36542996 | H31: 25.59934814 | I31: 25.41592265 | J31: 42.40729861 | K31: 99.28347596
A32: PRESIDENCIA DE LA REPÚBLICA | B32: 54.00249696 | C32: 4.73979959 | D32: 1.161276638 | E32: 1.161276638 | F32: 49.26269737 | G32: 8.7770008 | H32: 2.150412857 | I32: 2.150412857 | J32: 24.50054302 | K32: 100
A33: FISCALÍA | B33: 42.56454001 | C33: 16.42711303 | D33: 9.214903999 | E33: 9.201416149 | F33: 26.13742698 | G33: 38.59342313 | H33: 21.64925075 | I33: 21.61756276 | J33: 56.09569972 | K33: 99.85363006
A34: CULTURA | B34: 23.987375 | C34: 9.254373124 | D34: 3.101871963 | E34: 3.101121383 | F34: 14.73300188 | G34: 38.5801828 | H34: 12.9312689 | I34: 12.92813984 | J34: 33.51790469 | K34: 99.97580235
A35: ORGANISMOS DE CONTROL | B35: 22.27595667 | C35: 5.070467971 | D35: 5.070467971 | E35: 5.070467971 | F35: 17.2054887 | G35: 22.76206605 | H35: 22.76206605 | I35: 22.76206605 | J35: 100 | K35: 100
A36: Fuente: Ministerio de Hacienda y Crèdito Pùblico. Ejecución de ingresos y gastos de las entidades que conforman el Presupuesto General de la Nación
B39: =+B11-'CUA3'!C28 -> 0 | C39: =+C11-'CUA3'!D28 -> 0 | D39: =+D11-'CUA3'!E28 -> 0 | E39: =+E11-'CUA3'!F28 -> 0 | F39: =+F11-'CUA3'!G28 -> 0

Sheet CUA7
A5: Cuadro No. 7 Ejecución del Presupuesto General de la Nación detallado por sector, entidad y rubro presupuestal
A6: =+'CUA1'!A6 -> Acumulada a Mayo 2026
A7: Cifras en Pesos
A8: Entidad/Detalle | B8: Apropiación Vigente | C8: Compromiso | D8: Obligación | E8: Pago | F8: Apropiación sin comprometer | G8: Porcentaje de Ejecución
G9: Comp/ Aprop | H9: Oblig/ Aprop | I9: Pago/ Aprop
A10: TOTAL | B10: =+[1]CUA1!C27*1000000000 -> 555728554294692 | C10: =+[1]CUA1!D27*1000000000 -> 2.597669095e+14 | D10: =+[1]CUA1!E27*1000000000 -> 1.872103087e+14 | E10: =+[1]CUA1!F27*1000000000 -> 1.856856651e+14 | F10: =+B10-C10 -> 2.959616448e+14 | G10: =IFERROR(IF(C10>0,+C10/B10*100,0),0) -> 46.74348789 | H10: =IFERROR(IF(D10>0,+D10/B10*100,0),0) -> 33.6873654 | I10: =IFERROR(IF(E10>0,+E10/B10*100,0),0) -> 33.41301499
A11: TOTAL SIN DEUDA | B11: =+[1]CUA1!C28*1000000000 -> 455278845826365 | C11: =+[1]CUA1!D28*1000000000 -> 209548616953484 | D11: =+[1]CUA1!E28*1000000000 -> 1.426884116e+14 | E11: =+[1]CUA1!F28*1000000000 -> 1.413277394e+14 | F11: =+B11-C11 -> 245730228872881 | G11: =IFERROR(IF(C11>0,+C11/B11*100,0),0) -> 46.02643388 | H11: =IFERROR(IF(D11>0,+D11/B11*100,0),0) -> 31.34088327 | I11: 31.04201758
A12: AGRICULTURA Y DESARROLLO RURAL | B12: 4124074275490 | C12: 2.207496854e+12 | D12: 9.575062338e+11 | E12: 9.300484839e+11 | F12: 1.916577422e+12 | G12: 53.52708769 | H12: 23.21748276 | I12: 22.55169092
A13: 170101 Ministerio de Agricultura y Desarrollo Rural | B13: 1206130007808 | C13: 7.621273213e+11 | D13: 3.224876684e+11 | E13: 3.224876684e+11 | F13: 4.440026865e+11 | G13: 63.18782522 | H13: 26.7373887 | I13: 26.7373887
A14: Funcionamiento | B14: 435859623000 | C14: 3.598982558e+11 | D14: 2.335230966e+11 | E14: 2.335230966e+11 | F14: 7.596136718e+10 | G14: 82.57205688 | H14: 53.57759341 | I14: 53.57759341
A15: Gastos de Personal | B15: 37581089000 | C15: 13292637541 | D15: 13221899048 | E15: 13221899048 | F15: 24288451459 | G15: 35.37054911 | H15: 35.18232015 | I15: 35.18232015
A16: 01-01-01-- SALARIO | B16: 25669575000 | C16: 8703687045 | D16: 8703687045 | E16: 8703687045 | F16: 16965887955 | G16: 33.90662699 | H16: 33.90662699 | I16: 33.90662699
A17: 01-01-02-- CONTRIBUCIONES INHERENTES A LA NÓMINA | B17: 9350945000 | C17: 3386212812 | D17: 3315474319 | E17: 3315474319 | F17: 5964732188 | G17: 36.21251983 | H17: 35.45603486 | I17: 35.45603486
A18: 01-01-03-- REMUNERACIONES NO CONSTITUTIVAS DE FACTOR SALARIAL | B18: 2560569000 | C18: 1202737684 | D18: 1202737684 | E18: 1202737684 | F18: 1357831316 | G18: 46.97150063 | H18: 46.97150063 | I18: 46.97150063
A19: Adquisición de Bienes y Servicios | B19: 14600000000 | C19: 1.062036888e+10 | D19: 4373330795 | E19: 4373330795 | F19: 3979631122 | G19: 72.74225259 | H19: 29.95432052 | I19: 29.95432052
A20: 02---- ADQUISICIÓN DE BIENES Y SERVICIOS | B20: 14600000000 | C20: 1.062036888e+10 | D20: 4373330795 | E20: 4373330795 | F20: 3979631122 | G20: 72.74225259 | H20: 29.95432052 | I20: 29.95432052
A21: Transferencias | B21: 372250166000 | C21: 3.2909272e+11 | D21: 2.090353374e+11 | E21: 2.090353374e+11 | F21: 4.315744596e+10 | G21: 88.40633265 | H21: 56.15453169 | I21: 56.15453169
A22: 03-03-01-020- FONDO DE FOMENTO AGROPECUARIO DECRETO LEY 1279 DE 1994 | B22: 428816000 | C22: 0 | D22: 0 | E22: 0 | F22: 428816000 | G22: 0 | H22: 0 | I22: 0
A23: 03-03-01-067- DESARROLLO DE FUNCIONES DE APOYO AL SECTOR AGROPECUARIO EN CIENCIA, TECNOLOGÍA E INNOVACIÓN A CARGO DE CORPOICA A NIVEL NACIONAL. LEY 1731 DE 2014 | B23: 216754750000 | C23: 216754750000 | D23: 151728325000 | E23: 151728325000 | F23: 0 | G23: 100 | H23: 70 | I23: 70
A24: 03-03-04-050- TRANSFERENCIA A LA SOCIEDAD FIDUCIARIA DE DESARROLLO AGROPECUARIO S.A. FIDUAGRARIA - PATRIMONIO AUTÓNOMO DE REMANENTES - INCODER EN LIQUIDACIÓN | B24: 2430000000 | C24: 0 | D24: 0 | E24: 0 | F24: 2430000000 | G24: 0 | H24: 0 | I24: 0
A25: 03-04-02-004- BONOS PENSIONALES (DE PENSIONES) | B25: 1611837000 | C25: 59001000 | D25: 59001000 | E25: 59001000 | F25: 1552836000 | G25: 3.660481798 | H25: 3.660481798 | I25: 3.660481798
A26: 03-04-02-012- INCAPACIDADES Y LICENCIAS DE MATERNIDAD Y PATERNIDAD (NO DE PENSIONES) | B26: 186000000 | C26: 29346616 | D26: 29346616 | E26: 29346616 | F26: 156653384 | G26: 15.77775054 | H26: 15.77775054 | I26: 15.77775054
A27: 03-04-02-080- MESADAS PENSIONALES DEL IDEMA (DE PENSIONES) | B27: 3738449000 | C27: 1037713037 | D27: 1037713037 | E27: 1037713037 | F27: 2700735963 | G27: 27.75784922 | H27: 27.75784922 | I27: 27.75784922
A28: 03-11-02-001- TRANSFERENCIAS AL SECTOR AGRÍCOLA Y SECTOR INDUSTRIAL PARA APOYO A LA PRODUCCIÓN - ARTÍCULO 1 LEY 16 DE 1990 Y ARTÍCULO 1 LEY 101 DE 1993; LEY 795 DE 2003 | B28: 20000000000 | C28: 0 | D28: 0 | E28: 0 | F28: 20000000000 | G28: 0 | H28: 0 | I28: 0
A29: 03-02-02-- A ORGANIZACIONES INTERNACIONALES | B29: 4103000000 | C29: 540000000 | D29: 509042400 | E29: 509042400 | F29: 3563000000 | G29: 13.16110163 | H29: 12.4065903 | I29: 12.4065903
A30: 03-10--- SENTENCIAS Y CONCILIACIONES | B30: 872000000 | C30: 671909385.7 | D30: 671909385.7 | E30: 671909385.7 | F30: 200090614.3 | G30: 77.05382864 | H30: 77.05382864 | I30: 77.05382864
A31: 03-04-02-009- OBLIGACIONES CONVENCIONALES PENSIONADOS DEL IDEMA (OTRAS PRESTACIONES DE JUBILACIÓN) | B31: 125314000 | C31: 0 | D31: 0 | E31: 0 | F31: 125314000 | G31: 0 | H31: 0 | I31: 0
A32: 03-03-04-071- FONDO PARA EL ACCESO A LOS INSUMOS AGROPECUARIOS -FAIA, LEY 2183 DE 2022 | B32: 115000000000 | C32: 110000000000 | D32: 55000000000 | E32: 55000000000 | F32: 5000000000 | G32: 95.65217391 | H32: 47.82608696 | I32: 47.82608696
A33: 03-03-04-070- FONDO DE FOMENTO PARA LAS MUJERES RURALES -FOMMUR, LEY 731 DE 2002 | B33: 5000000000 | C33: 0 | D33: 0 | E33: 0 | F33: 5000000000 | G33: 0 | H33: 0 | I33: 0
A34: 03-03-01-080- TRANSFERENCIA PARA ENTIDADES EN PROCESO DE LIQUIDACIÓN | B34: 2000000000 | C34: 0 | D34: 0 | E34: 0 | F34: 2000000000 | G34: 0 | H34: 0 | I34: 0
A35: Gastos por Tributos, Multas, Sanciones e Intereses de Mora | B35: 11428368000 | C35: 6892529359 | D35: 6892529359 | E35: 6892529359 | F35: 4535838641 | G35: 60.31070542 | H35: 60.31070542 | I35: 60.31070542
A36: 08-01--- IMPUESTOS | B36: 7984584000 | C36: 6892529359 | D36: 6892529359 | E36: 6892529359 | F36: 1092054641 | G36: 86.32296133 | H36: 86.32296133 | I36: 86.32296133
A37: 08-03--- TASAS Y DERECHOS ADMINISTRATIVOS | B37: 35088000 | C37: 0 | D37: 0 | E37: 0 | F37: 35088000 | G37: 0 | H37: 0 | I37: 0
A38: 08-04-01-- CUOTA DE FISCALIZACIÓN Y AUDITAJE | B38: 3408696000 | C38: 0 | D38: 0 | E38: 0 | F38: 3408696000 | G38: 0 | H38: 0 | I38: 0
A39: Inversión | B39: 770270384808 | C39: 4.022290655e+11 | D39: 8.896457181e+10 | E39: 8.896457181e+10 | F39: 3.680413194e+11 | G39: 52.21920424 | H39: 11.5497848 | I39: 11.5497848
A40: A-Inversión | B40: 770270384808 | C40: 4.022290655e+11 | D40: 8.896457181e+10 | E40: 8.896457181e+10 | F40: 3.680413194e+11 | G40: 52.21920424 | H40: 11.5497848 | I40: 11.5497848
A41: 1702-1100-19-30101B- 3. DERECHO HUMANO A LA ALIMENTACIÓN / B. PROVEER ACCESO A FACTORES PRODUCTIVOS EN FORMA OPORTUNA Y SIMULTÁNEA | B41: 33561313108 | C41: 3585359045 | D41: 1002284500 | E41: 1002284500 | F41: 29975954063 | G41: 10.68301182 | H41: 2.986428144 | I41: 2.986428144
A42: 1702-1100-20-30101B- 3. DERECHO HUMANO A LA ALIMENTACIÓN / B. PROVEER ACCESO A FACTORES PRODUCTIVOS EN FORMA OPORTUNA Y SIMULTÁNEA | B42: 19500000000 | C42: 6025127976 | D42: 1452264257 | E42: 1452264257 | F42: 13474872024 | G42: 30.89809218 | H42: 7.44750901 | I42: 7.44750901
A43: 1702-1100-21-30101B- 3. DERECHO HUMANO A LA ALIMENTACIÓN / B. PROVEER ACCESO A FACTORES PRODUCTIVOS EN FORMA OPORTUNA Y SIMULTÁNEA | B43: 20000000000 | C43: 2479191065 | D43: 744917302 | E43: 744917302 | F43: 17520808935 | G43: 12.39595533 | H43: 3.72458651 | I43: 3.72458651
A44: 1703-1100-8-30101B- 3. DERECHO HUMANO A LA ALIMENTACIÓN / B. PROVEER ACCESO A FACTORES PRODUCTIVOS EN FORMA OPORTUNA Y SIMULTÁNEA | B44: 400000000000 | C44: 307801624523 | D44: 6.173234506e+10 | E44: 6.173234506e+10 | F44: 92198375477 | G44: 76.95040613 | H44: 15.43308626 | I44: 15.43308626
A45: 1709-1100-6-30101B- 3. DERECHO HUMANO A LA ALIMENTACIÓN / B. PROVEER ACCESO A FACTORES PRODUCTIVOS EN FORMA OPORTUNA Y SIMULTÁNEA | B45: 43236606927 | C45: 19006251860 | D45: 4836142177 | E45: 4836142177 | F45: 24230355067 | G45: 43.95870354 | H45: 11.18529533 | I45: 11.18529533
A46: 1799-1100-9-53105B- 5. CONVERGENCIA REGIONAL / B. ENTIDADES PÚBLICAS TERRITORIALES Y NACIONALES FORTALECIDAS | B46: 11184000000 | C46: 7343313259 | D46: 2480875414 | E46: 2480875414 | F46: 3840686741 | G46: 65.65909566 | H46: 22.18236243 | I46: 22.18236243
A47: 1799-1100-16-30206D- 3. DERECHO HUMANO A LA ALIMENTACIÓN / D. MINISTERIO DE AGRICULTURA Y DESARROLLO RURAL COMO RECTOR DEL DISEÑO DE POLÍTICA | B47: 10381564652 | C47: 8073034737 | D47: 1464630419 | E47: 1464630419 | F47: 2308529915 | G47: 77.76317932 | H47: 14.10799304 | I47: 14.10799304
A48: 1799-1100-17-30206D- 3. DERECHO HUMANO A LA ALIMENTACIÓN / D. MINISTERIO DE AGRICULTURA Y DESARROLLO RURAL COMO RECTOR DEL DISEÑO DE POLÍTICA | B48: 22155042274 | C48: 14593491134 | D48: 3677448511 | E48: 3677448511 | F48: 7561551140 | G48: 65.86984107 | H48: 16.59869778 | I48: 16.59869778
A49: 1709-1100-7-30101B- 3. DERECHO HUMANO A LA ALIMENTACIÓN / B. PROVEER ACCESO A FACTORES PRODUCTIVOS EN FORMA OPORTUNA Y SIMULTÁNEA | B49: 10000000000 | C49: 4215907975 | D49: 1290634929 | E49: 1290634929 | F49: 5784092025 | G49: 42.15907975 | H49: 12.90634929 | I49: 12.90634929
A50: 1701-1100-4-51103F- 5. CONVERGENCIA REGIONAL / F. PROVISIÓN Y MEJORAMIENTO DE VIVIENDA RURAL | B50: 113000000000 | C50: 4515427958 | D50: 1252984090 | E50: 1252984090 | F50: 108484572042 | G50: 3.995953945 | H50: 1.108835478 | I50: 1.108835478
A51: 1799-1100-19-30206D- 3. DERECHO HUMANO A LA ALIMENTACIÓN / D. MINISTERIO DE AGRICULTURA Y DESARROLLO RURAL COMO RECTOR DEL DISEÑO DE POLÍTICA | B51: 7011170955 | C51: 6330849638 | D51: 2195098684 | E51: 2195098684 | F51: 680321317 | G51: 90.29660921 | H51: 31.30858879 | I51: 31.30858879
A52: 1799-1100-20-30206D- 3. DERECHO HUMANO A LA ALIMENTACIÓN / D. MINISTERIO DE AGRICULTURA Y DESARROLLO RURAL COMO RECTOR DEL DISEÑO DE POLÍTICA | B52: 10000000000 | C52: 7440514157 | D52: 4010460749 | E52: 4010460749 | F52: 2559485843 | G52: 74.40514157 | H52: 40.10460749 | I52: 40.10460749
A53: 1708-1100-3-40403A- 4. TRANSFORMACIÓN PRODUCTIVA, INTERNACIONALIZACIÓN Y ACCIÓN CLIMÁTICA / A. MODELOS DE PRODUCCIÓN SOSTENIBLE Y REGENERATIVOS EN AGRICULTURA Y GANADERÍA | B53: 57703686892 | C53: 1630610900 | D53: 302660126 | E53: 302660126 | F53: 56073075992 | G53: 2.825834861 | H53: 0.5245074315 | I53: 0.5245074315
A54: 1708-1100-5-40403A- 4. TRANSFORMACIÓN PRODUCTIVA, INTERNACIONALIZACIÓN Y ACCIÓN CLIMÁTICA / A. MODELOS DE PRODUCCIÓN SOSTENIBLE Y REGENERATIVOS EN AGRICULTURA Y GANADERÍA | B54: 4875000000 | C54: 2636330938 | D54: 732519215 | E54: 732519215 | F54: 2238669062 | G54: 54.07858334 | H54: 15.02603518 | I54: 15.02603518
A55: 1704-1100-3-30206D- 3. DERECHO HUMANO A LA ALIMENTACIÓN / D. MINISTERIO DE AGRICULTURA Y DESARROLLO RURAL COMO RECTOR DEL DISEÑO DE POLÍTICA | B55: 6662000000 | C55: 5553830289 | D55: 1470189709 | E55: 1470189709 | F55: 1108169711 | G55: 83.3658104 | H55: 22.06829344 | I55: 22.06829344
A56: 1799-1100-21-53105B- 5. CONVERGENCIA REGIONAL / B. ENTIDADES PÚBLICAS TERRITORIALES Y NACIONALES FORTALECIDAS | B56: 1000000000 | C56: 998200001 | D56: 319116667 | E56: 319116667 | F56: 1799999 | G56: 99.8200001 | H56: 31.9116667 | I56: 31.9116667
A57: 170106 Unidad de Planificación de Tierras Rurales, Adecuación de Tierras y Usos Agropecuarios-UPRA | B57: 64503874000 | C57: 5.115884291e+10 | D57: 2.03407318e+10 | E57: 2.03407318e+10 | F57: 1.334503109e+10 | G57: 79.31127192 | H57: 31.5341243 | I57: 31.5341243
A58: Funcionamiento | B58: 14503874000 | C58: 6880422340 | D58: 5516447797 | E58: 5516447797 | F58: 7623451660 | G58: 47.43851429 | H58: 38.03430585 | I58: 38.03430585
A59: Gastos de Personal | B59: 11628979000 | C59: 4565161366 | D59: 4565161366 | E59: 4565161366 | F59: 7063817634 | G59: 39.25676851 | H59: 39.25676851 | I59: 39.25676851
A60: 01-01-01-- SALARIO | B60: 7630849000 | C60: 2969587404 | D60: 2969587404 | E60: 2969587404 | F60: 4661261596 | G60: 38.91555715 | H60: 38.91555715 | I60: 38.91555715
A61: 01-01-02-- CONTRIBUCIONES INHERENTES A LA NÓMINA | B61: 2790687000 | C61: 1161440443 | D61: 1161440443 | E61: 1161440443 | F61: 1629246557 | G61: 41.61844173 | H61: 41.61844173 | I61: 41.61844173
A62: 01-01-03-- REMUNERACIONES NO CONSTITUTIVAS DE FACTOR SALARIAL | B62: 1207443000 | C62: 434133519 | D62: 434133519 | E62: 434133519 | F62: 773309481 | G62: 35.9547837 | H62: 35.9547837 | I62: 35.9547837
A63: Adquisición de Bienes y Servicios | B63: 2717381000 | C63: 2311826711 | D63: 947852167.7 | E63: 947852167.7 | F63: 405554289.3 | G63: 85.07554556 | H63: 34.88109204 | I63: 34.88109204
A64: 02---- ADQUISICIÓN DE BIENES Y SERVICIOS | B64: 2717381000 | C64: 2311826711 | D64: 947852167.7 | E64: 947852167.7 | F64: 405554289.3 | G64: 85.07554556 | H64: 34.88109204 | I64: 34.88109204
A65: Transferencias | B65: 36755000 | C65: 3200263 | D65: 3200263 | E65: 3200263 | F65: 33554737 | G65: 8.707014012 | H65: 8.707014012 | I65: 8.707014012
A66: 03-04-02-012- INCAPACIDADES Y LICENCIAS DE MATERNIDAD Y PATERNIDAD (NO DE PENSIONES) | B66: 36755000 | C66: 3200263 | D66: 3200263 | E66: 3200263 | F66: 33554737 | G66: 8.707014012 | H66: 8.707014012 | I66: 8.707014012
A67: Gastos por Tributos, Multas, Sanciones e Intereses de Mora | B67: 120759000 | C67: 234000 | D67: 234000 | E67: 234000 | F67: 120525000 | G67: 0.1937743771 | H67: 0.1937743771 | I67: 0.1937743771
A68: 08-03--- TASAS Y DERECHOS ADMINISTRATIVOS | B68: 427000 | C68: 234000 | D68: 234000 | E68: 234000 | F68: 193000 | G68: 54.80093677 | H68: 54.80093677 | I68: 54.80093677
A69: 08-04-01-- CUOTA DE FISCALIZACIÓN Y AUDITAJE | B69: 120332000 | C69: 0 | D69: 0 | E69: 0 | F69: 120332000 | G69: 0 | H69: 0 | I69: 0
A70: Inversión | B70: 50000000000 | C70: 4.427842057e+10 | D70: 1.482428401e+10 | E70: 1.482428401e+10 | F70: 5721579433 | G70: 88.55684113 | H70: 29.64856801 | I70: 29.64856801
A71: A-Inversión | B71: 50000000000 | C71: 4.427842057e+10 | D71: 1.482428401e+10 | E71: 1.482428401e+10 | F71: 5721579433 | G71: 88.55684113 | H71: 29.64856801 | I71: 29.64856801
A72: 1704-1100-9-30101A- 3. DERECHO HUMANO A LA ALIMENTACIÓN / A. ORDENAR LA PRODUCCIÓN AGROPECUARIA | B72: 20500000000 | C72: 19456558559 | D72: 5991783409 | E72: 5991783409 | F72: 1043441441 | G72: 94.91004175 | H72: 29.22821175 | I72: 29.22821175
A73: 1704-1100-10-30206C- 3. DERECHO HUMANO A LA ALIMENTACIÓN / C. PRODUCCIÓN DE INFORMACIÓN PARA MEJORAR LA TOMA DE DECISIONES | B73: 9500000000 | C73: 7549269054 | D73: 2163761833 | E73: 2163761833 | F73: 1950730946 | G73: 79.46599004 | H73: 22.77644035 | I73: 22.77644035
A74: 1704-1100-11-30206C- 3. DERECHO HUMANO A LA ALIMENTACIÓN / C. PRODUCCIÓN DE INFORMACIÓN PARA MEJORAR LA TOMA DE DECISIONES | B74: 3500000000 | C74: 3417910749 | D74: 1058073576 | E74: 1058073576 | F74: 82089250.74 | G74: 97.65459284 | H74: 30.23067361 | I74: 30.23067361
A75: 1799-1100-3-53105B- 5. CONVERGENCIA REGIONAL / B. ENTIDADES PÚBLICAS TERRITORIALES Y NACIONALES FORTALECIDAS | B75: 13000000000 | C75: 10409440472 | D75: 4165438719 | E75: 4165438719 | F75: 2590559528 | G75: 80.07261902 | H75: 32.0418363 | I75: 32.0418363
A76: 1704-1100-11-10303A- 1. ORDENAMIENTO DEL TERRITORIO ALREDEDOR DEL AGUA Y JUSTICIA AMBIENTAL / A. ARMONIZACIÓN Y RACIONALIZACIÓN DE LOS INSTRUMENTOS DE ORDENAMIENTO Y PLANIFICACIÓN TERRITORIAL | B76: 3500000000 | C76: 3445241733 | D76: 1445226469 | E76: 1445226469 | F76: 54758267 | G76: 98.43547809 | H76: 41.29218483 | I76: 41.29218483
A77: 170200 Instituto Colombiano Agropecuario (ICA) | B77: 474404090000 | C77: 2.745768829e+11 | D77: 1.557301308e+11 | E77: 1.357082943e+11 | F77: 1.998272071e+11 | G77: 57.8782706 | H77: 32.82647306 | I77: 28.60605486
A78: Funcionamiento | B78: 224404090000 | C78: 9.704825811e+10 | D78: 8.340131739e+10 | E78: 8.026825965e+10 | F78: 1.273558319e+11 | G78: 43.24709862 | H78: 37.16568508 | I78: 35.76951724
A79: Gastos de Personal | B79: 147032501000 | C79: 58197727956 | D79: 57216825169 | E79: 57216825169 | F79: 88834773044 | G79: 39.58153984 | H79: 38.91440653 | I79: 38.91440653
A80: 01-01-01-- SALARIO | B80: 96917628000 | C80: 38559594429 | D80: 38235611939 | E80: 38235611939 | F80: 58358033571 | G80: 39.78594527 | H80: 39.45165882 | I80: 39.45165882
A81: 01-01-02-- CONTRIBUCIONES INHERENTES A LA NÓMINA | B81: 36734430000 | C81: 14961876650 | D81: 14871381053 | E81: 14871381053 | F81: 21772553350 | G81: 40.72984568 | H81: 40.48349478 | I81: 40.48349478
A82: 01-01-03-- REMUNERACIONES NO CONSTITUTIVAS DE FACTOR SALARIAL | B82: 11264611000 | C82: 3897171067 | D82: 3568408872 | E82: 3568408872 | F82: 7367439933 | G82: 34.59658808 | H82: 31.67804793 | I82: 31.67804793
A83: 01-02-01-- SALARIO | B83: 1423073000 | C83: 400368644 | D83: 398596421 | E83: 398596421 | F83: 1022704356 | G83: 28.13409038 | H83: 28.00955545 | I83: 28.00955545
A84: 01-02-03-- REMUNERACIONES NO CONSTITUTIVAS DE FACTOR SALARIAL | B84: 21259000 | C84: 7070415 | D84: 5764533 | E84: 5764533 | F84: 14188585 | G84: 33.25845524 | H84: 27.11572981 | I84: 27.11572981
A85: 01-02-02-- CONTRIBUCIONES INHERENTES A LA NÓMINA | B85: 671500000 | C85: 371646751 | D85: 137062351 | E85: 137062351 | F85: 299853249 | G85: 55.34575592 | H85: 20.41137022 | I85: 20.41137022
A86: Adquisición de Bienes y Servicios | B86: 57134409000 | C86: 3.197828541e+10 | D86: 1.931557303e+10 | E86: 1.829984399e+10 | F86: 2.515612359e+10 | G86: 55.97027425 | H86: 33.80725095 | I86: 32.0294623
A87: 02---- ADQUISICIÓN DE BIENES Y SERVICIOS | B87: 57134409000 | C87: 3.197828541e+10 | D87: 1.931557303e+10 | E87: 1.829984399e+10 | F87: 2.515612359e+10 | G87: 55.97027425 | H87: 33.80725095 | I87: 32.0294623
A88: Transferencias | B88: 14692421000 | C88: 4648724317 | D88: 4645398762 | E88: 2528070062 | F88: 1.004369668e+10 | G88: 31.64028799 | H88: 31.61765349 | I88: 17.20662688
A89: 03-04-02-001- MESADAS PENSIONALES (DE PENSIONES) | B89: 152000000 | C89: 26473575 | D89: 26473575 | E89: 26473575 | F89: 125526425 | G89: 17.41682566 | H89: 17.41682566 | I89: 17.41682566
A90: 03-04-02-002- CUOTAS PARTES PENSIONALES (DE PENSIONES) | B90: 45000000 | C90: 7743287.67 | D90: 5071012.16 | E90: 5071012.16 | F90: 37256712.33 | G90: 17.20730593 | H90: 11.26891591 | I90: 11.26891591
A91: 03-04-02-022- PROGRAMAS DE VIVIENDA Y OTROS (NO DE PENSIONES) | B91: 2441421000 | C91: 1482732668 | D91: 1482732668 | E91: 1482732668 | F91: 958688332 | G91: 60.73236316 | H91: 60.73236316 | I91: 60.73236316
A92: 03-02-02-- A ORGANIZACIONES INTERNACIONALES | B92: 1000000000 | C92: 638047302 | D92: 638047302 | E92: 638047302 | F92: 361952698 | G92: 63.8047302 | H92: 63.8047302 | I92: 63.8047302
A93: 03-10--- SENTENCIAS Y CONCILIACIONES | B93: 9054000000 | C93: 2252031777 | D93: 2252031777 | E93: 134703076.5 | F93: 6801968223 | G93: 24.87333528 | H93: 24.87333528 | I93: 1.487774205
A94: 03-03-01-085- FONDO NACIONAL DE EMERGENCIAS SANITARIAS Y FITOSANITARIAS DEL INSTITUTO COLOMBIANO AGROPECUARIO - ICA | B94: 2000000000 | C94: 241695708 | D94: 241042428 | E94: 241042428 | F94: 1758304292 | G94: 12.0847854 | H94: 12.0521214 | I94: 12.0521214
A95: Adquisición de Activos Financieros | B95: 722400000 | C95: 0 | D95: 0 | E95: 0 | F95: 722400000 | G95: 0 | H95: 0 | I95: 0
A96: 06-01-04-011- PRÉSTAMOS DE CONSUMO | B96: 722400000 | C96: 0 | D96: 0 | E96: 0 | F96: 722400000 | G96: 0 | H96: 0 | I96: 0
A97: Gastos por Tributos, Multas, Sanciones e Intereses de Mora | B97: 4822359000 | C97: 2223520426 | D97: 2223520426 | E97: 2223520426 | F97: 2598838574 | G97: 46.10856277 | H97: 46.10856277 | I97: 46.10856277
A98: 08-01--- IMPUESTOS | B98: 3687159000 | C98: 2223520426 | D98: 2223520426 | E98: 2223520426 | F98: 1463638574 | G98: 60.30443565 | H98: 60.30443565 | I98: 60.30443565
A99: 08-04-01-- CUOTA DE FISCALIZACIÓN Y AUDITAJE | B99: 1135200000 | C99: 0 | D99: 0 | E99: 0 | F99: 1135200000 | G99: 0 | H99: 0 | I99: 0
A100: Inversión | B100: 250000000000 | C100: 1.775286248e+11 | D100: 7.232881341e+10 | E100: 5.54400346e+10 | F100: 7.247137516e+10 | G100: 71.01144993 | H100: 28.93152536 | I100: 22.17601384
A101: A-Inversión | B101: 250000000000 | C101: 1.775286248e+11 | D101: 7.232881341e+10 | E101: 5.54400346e+10 | F101: 7.247137516e+10 | G101: 71.01144993 | H101: 28.93152536 | I101: 22.17601384
A102: 1799-1100-3-53105B- 5. CONVERGENCIA REGIONAL / B. ENTIDADES PÚBLICAS TERRITORIALES Y NACIONALES FORTALECIDAS | B102: 40000000000 | C102: 26198013377 | D102: 1.435641154e+10 | E102: 1.162768511e+10 | F102: 13801986623 | G102: 65.49503344 | H102: 35.89102884 | I102: 29.06921277
A103: 1707-1100-6-30204A- 3. DERECHO HUMANO A LA ALIMENTACIÓN / A. POLÍTICA DE INOCUIDAD DE LOS ALIMENTOS PARA EL PAÍS | B103: 105000000000 | C103: 7.361132553e+10 | D103: 2.791607775e+10 | E103: 2.07970818e+10 | F103: 3.138867447e+10 | G103: 70.10602432 | H103: 26.58674071 | I103: 19.80674457
A104: 1707-1100-7-30204A- 3. DERECHO HUMANO A LA ALIMENTACIÓN / A. POLÍTICA DE INOCUIDAD DE LOS ALIMENTOS PARA EL PAÍS | B104: 105000000000 | C104: 7.771928593e+10 | D104: 3.005632412e+10 | E104: 2.301526769e+10 | F104: 2.728071407e+10 | G104: 74.01836755 | H104: 28.6250706 | I104: 21.91930257
A105: 171500 Autoridad Nacional de Acuicultura y Pesca - AUNAP | B105: 94551871000 | C105: 3.920865969e+10 | D105: 2.201500994e+10 | E105: 2.194115683e+10 | F105: 5.534321131e+10 | G105: 41.46788347 | H105: 23.2835265 | I105: 23.20541794
A106: Funcionamiento | B106: 24551871000 | C106: 9060159544 | D106: 7955250927 | E106: 7948229927 | F106: 1.549171146e+10 | G106: 36.90211448 | H106: 32.40181136 | I106: 32.37321476
A107: Gastos de Personal | B107: 16142118000 | C107: 5418030039 | D107: 5418030039 | E107: 5418030039 | F107: 10724087961 | G107: 33.56455478 | H107: 33.56455478 | I107: 33.56455478
A108: 01-01-01-- SALARIO | B108: 11024906000 | C108: 3602905879 | D108: 3602905879 | E108: 3602905879 | F108: 7422000121 | G108: 32.67969703 | H108: 32.67969703 | I108: 32.67969703
A109: 01-01-02-- CONTRIBUCIONES INHERENTES A LA NÓMINA | B109: 4028171000 | C109: 1416765867 | D109: 1416765867 | E109: 1416765867 | F109: 2611405133 | G109: 35.17144299 | H109: 35.17144299 | I109: 35.17144299
A110: 01-01-03-- REMUNERACIONES NO CONSTITUTIVAS DE FACTOR SALARIAL | B110: 1089041000 | C110: 398358293 | D110: 398358293 | E110: 398358293 | F110: 690682707 | G110: 36.57881503 | H110: 36.57881503 | I110: 36.57881503
A111: Adquisición de Bienes y Servicios | B111: 7887484000 | C111: 3570392718 | D111: 2465484102 | E111: 2458463102 | F111: 4317091282 | G111: 45.26656052 | H111: 31.25818198 | I111: 31.16916754
A112: 02---- ADQUISICIÓN DE BIENES Y SERVICIOS | B112: 7887484000 | C112: 3570392718 | D112: 2465484102 | E112: 2458463102 | F112: 4317091282 | G112: 45.26656052 | H112: 31.25818198 | I112: 31.16916754
A113: Transferencias | B113: 214198000 | C113: 34923114 | D113: 34923114 | E113: 34923114 | F113: 179274886 | G113: 16.30412702 | H113: 16.30412702 | I113: 16.30412702
A114: 03-04-02-012- INCAPACIDADES Y LICENCIAS DE MATERNIDAD Y PATERNIDAD (NO DE PENSIONES) | B114: 64198000 | C114: 34923114 | D114: 34923114 | E114: 34923114 | F114: 29274886 | G114: 54.39906851 | H114: 54.39906851 | I114: 54.39906851
A115: 03-10--- SENTENCIAS Y CONCILIACIONES | B115: 150000000 | C115: 0 | D115: 0 | E115: 0 | F115: 150000000 | G115: 0 | H115: 0 | I115: 0
A116: Gastos por Tributos, Multas, Sanciones e Intereses de Mora | B116: 308071000 | C116: 36813672 | D116: 36813672 | E116: 36813672 | F116: 271257328 | G116: 11.94973626 | H116: 11.94973626 | I116: 11.94973626
A117: 08-01--- IMPUESTOS | B117: 62952000 | C117: 35813672 | D117: 35813672 | E117: 35813672 | F117: 27138328 | G117: 56.89044351 | H117: 56.89044351 | I117: 56.89044351
A118: 08-03--- TASAS Y DERECHOS ADMINISTRATIVOS | B118: 4663000 | C118: 1000000 | D118: 1000000 | E118: 1000000 | F118: 3663000 | G118: 21.4454214 | H118: 21.4454214 | I118: 21.4454214
A119: 08-04-01-- CUOTA DE FISCALIZACIÓN Y AUDITAJE | B119: 240456000 | C119: 0 | D119: 0 | E119: 0 | F119: 240456000 | G119: 0 | H119: 0 | I119: 0
A120: Inversión | B120: 70000000000 | C120: 30148500146 | D120: 14059759012 | E120: 13992926904 | F120: 39851499854 | G120: 43.06928592 | H120: 20.08537002 | I120: 19.98989558
A121: A-Inversión | B121: 70000000000 | C121: 30148500146 | D121: 14059759012 | E121: 13992926904 | F121: 39851499854 | G121: 43.06928592 | H121: 20.08537002 | I121: 19.98989558
A122: 1799-1100-3-53105B- 5. CONVERGENCIA REGIONAL / B. ENTIDADES PÚBLICAS TERRITORIALES Y NACIONALES FORTALECIDAS | B122: 4139000000 | C122: 2624434100 | D122: 1325597099 | E122: 1325597099 | F122: 1514565900 | G122: 63.40744383 | H122: 32.02698959 | I122: 32.02698959
A123: 1707-1100-6-30101B- 3. DERECHO HUMANO A LA ALIMENTACIÓN / B. PROVEER ACCESO A FACTORES PRODUCTIVOS EN FORMA OPORTUNA Y SIMULTÁNEA | B123: 3170000000 | C123: 1485481012 | D123: 599162495 | E123: 599162495 | F123: 1684518988 | G123: 46.86059975 | H123: 18.90102508 | I123: 18.90102508
A124: 1707-1100-7-30101B- 3. DERECHO HUMANO A LA ALIMENTACIÓN / B. PROVEER ACCESO A FACTORES PRODUCTIVOS EN FORMA OPORTUNA Y SIMULTÁNEA | B124: 50129000000 | C124: 14317990536 | D124: 8179035622 | E124: 8129979830 | F124: 35811009464 | G124: 28.56229036 | H124: 16.31597603 | I124: 16.21811692
A125: 1708-1100-6-30206C- 3. DERECHO HUMANO A LA ALIMENTACIÓN / C. PRODUCCIÓN DE INFORMACIÓN PARA MEJORAR LA TOMA DE DECISIONES | B125: 10000000000 | C125: 9487522636 | D125: 3068796636 | E125: 3053265220 | F125: 512477364 | G125: 94.87522636 | H125: 30.68796636 | I125: 30.5326522
A126: 1708-1100-7-30101B- 3. DERECHO HUMANO A LA ALIMENTACIÓN / B. PROVEER ACCESO A FACTORES PRODUCTIVOS EN FORMA OPORTUNA Y SIMULTÁNEA | B126: 2562000000 | C126: 2233071862 | D126: 887167160 | E126: 884922260 | F126: 328928138 | G126: 87.16127486 | H126: 34.62791413 | I126: 34.54029118
A127: 171600 UAE Gestión de Restitución de Tierras Despojadas | B127: 472690137814 | C127: 3.133494186e+11 | D127: 1.444823254e+11 | E127: 1.378633263e+11 | F127: 1.593407192e+11 | G127: 66.29066137 | H127: 30.56596993 | I127: 29.16568704
A128: Funcionamiento | B128: 81763740000 | C128: 3.294238101e+10 | D128: 2.941568164e+10 | E128: 2.828229726e+10 | F128: 4.882135899e+10 | G128: 40.2897189 | H128: 35.9764385 | I128: 34.59026857
A129: Gastos de Personal | B129: 59935851000 | C129: 23090549202 | D129: 23090549202 | E129: 2.281812033e+10 | F129: 36845301798 | G129: 38.52543814 | H129: 38.52543814 | I129: 38.07090406
A130: 01-01-01-- SALARIO | B130: 40809778000 | C130: 15629658603 | D130: 15629658603 | E130: 15629658603 | F130: 25180119397 | G130: 38.2988082 | H130: 38.2988082 | I130: 38.2988082
A131: 01-01-02-- CONTRIBUCIONES INHERENTES A LA NÓMINA | B131: 14749894000 | C131: 6156898063 | D131: 6156898063 | E131: 5884469191 | F131: 8592995937 | G131: 41.74198176 | H131: 41.74198176 | I131: 39.89499309
A132: 01-01-03-- REMUNERACIONES NO CONSTITUTIVAS DE FACTOR SALARIAL | B132: 4376179000 | C132: 1303992536 | D132: 1303992536 | E132: 1303992536 | F132: 3072186464 | G132: 29.79751368 | H132: 29.79751368 | I132: 29.79751368
A133: Adquisición de Bienes y Servicios | B133: 20370107000 | C133: 9734933543 | D133: 6208234172 | E133: 5347278662 | F133: 1.063517346e+10 | G133: 47.79029164 | H133: 30.47717998 | I133: 26.25061646
A134: 02---- ADQUISICIÓN DE BIENES Y SERVICIOS | B134: 20370107000 | C134: 9734933543 | D134: 6208234172 | E134: 5347278662 | F134: 1.063517346e+10 | G134: 47.79029164 | H134: 30.47717998 | I134: 26.25061646
A135: Transferencias | B135: 591000000 | C135: 94679263 | D135: 94679263 | E135: 94679263 | F135: 496320737 | G135: 16.02017986 | H135: 16.02017986 | I135: 16.02017986
A136: 03-04-02-012- INCAPACIDADES Y LICENCIAS DE MATERNIDAD Y PATERNIDAD (NO DE PENSIONES) | B136: 195000000 | C136: 94679263 | D136: 94679263 | E136: 94679263 | F136: 100320737 | G136: 48.55346821 | H136: 48.55346821 | I136: 48.55346821
A137: 03-10--- SENTENCIAS Y CONCILIACIONES | B137: 396000000 | C137: 0 | D137: 0 | E137: 0 | F137: 396000000 | G137: 0 | H137: 0 | I137: 0
A138: Gastos por Tributos, Multas, Sanciones e Intereses de Mora | B138: 866782000 | C138: 22219000 | D138: 22219000 | E138: 22219000 | F138: 844563000 | G138: 2.563389641 | H138: 2.563389641 | I138: 2.563389641
A139: 08-01--- IMPUESTOS | B139: 22219000 | C139: 22219000 | D139: 22219000 | E139: 22219000 | F139: 0 | G139: 100 | H139: 100 | I139: 100
A140: 08-04-01-- CUOTA DE FISCALIZACIÓN Y AUDITAJE | B140: 844563000 | C140: 0 | D140: 0 | E140: 0 | F140: 844563000 | G140: 0 | H140: 0 | I140: 0
A141: Inversión | B141: 390926397814 | C141: 2.804070376e+11 | D141: 1.150666437e+11 | E141: 1.09581029e+11 | F141: 1.105193602e+11 | G141: 71.72885718 | H141: 29.43434989 | I141: 28.03111522
A142: A-Inversión | B142: 390926397814 | C142: 2.804070376e+11 | D142: 1.150666437e+11 | E142: 1.09581029e+11 | F142: 1.105193602e+11 | G142: 71.72885718 | H142: 29.43434989 | I142: 28.03111522
A143: 1705-1100-8-10106A- 1. ORDENAMIENTO DEL TERRITORIO ALREDEDOR DEL AGUA Y JUSTICIA AMBIENTAL / A. ACCESO Y FORMALIZACIÓN DE LA PROPIEDAD | B143: 90087755245 | C143: 7.113567653e+10 | D143: 4.082905655e+10 | E143: 3.712054849e+10 | F143: 1.895207872e+10 | G143: 78.9626474 | H143: 45.32142736 | I143: 41.20487672
A144: 1705-1100-9-10106A- 1. ORDENAMIENTO DEL TERRITORIO ALREDEDOR DEL AGUA Y JUSTICIA AMBIENTAL / A. ACCESO Y FORMALIZACIÓN DE LA PROPIEDAD | B144: 127277919344 | C144: 1.082076449e+11 | D144: 3.909133713e+10 | E144: 3.744923974e+10 | F144: 1.907027446e+10 | G144: 85.01682416 | H144: 30.71336908 | I144: 29.42320234
A145: 1705-1100-10-10106B- 1. ORDENAMIENTO DEL TERRITORIO ALREDEDOR DEL AGUA Y JUSTICIA AMBIENTAL / B. COORDINACIÓN INSTITUCIONAL PARA OPTIMIZAR LA FORMALIZACIÓN | B145: 133305901655 | C145: 6.367811926e+10 | D145: 1.981127074e+10 | E145: 1.974923919e+10 | F145: 6.962778239e+10 | G145: 47.76841721 | H145: 14.86151063 | I145: 14.81497739
A146: 1799-1100-2-10106A- 1. ORDENAMIENTO DEL TERRITORIO ALREDEDOR DEL AGUA Y JUSTICIA AMBIENTAL / A. ACCESO Y FORMALIZACIÓN DE LA PROPIEDAD | B146: 40254821570 | C146: 3.738559691e+10 | D146: 15334979324 | E146: 15262001574 | F146: 2869224661 | G146: 92.87234535 | H146: 38.09476412 | I146: 37.91347466
A147: 171700 Agencia Nacional de Tierras - ANT | B147: 1264799749795 | C147: 5.354688039e+11 | D147: 2.09475657e+11 | E147: 2.094515934e+11 | F147: 7.293309459e+11 | G147: 42.33625156 | H147: 16.56196224 | I147: 16.56005968
A148: Funcionamiento | B148: 77711889000 | C148: 2.982142449e+10 | D148: 2.287060135e+10 | E148: 2.2869065e+10 | F148: 4.789046451e+10 | G148: 38.37433998 | H148: 29.42999024 | I148: 29.42801326
A149: Gastos de Personal | B149: 37050789000 | C149: 13385694331 | D149: 13226844284 | E149: 13226844284 | F149: 23665094669 | G149: 36.12796027 | H149: 35.69922434 | I149: 35.69922434
A150: 01-01-01-- SALARIO | B150: 25755742000 | C150: 8889293090 | D150: 8888226499 | E150: 8888226499 | F150: 16866448910 | G150: 34.51383031 | H150: 34.50968914 | I150: 34.50968914
A151: 01-01-02-- CONTRIBUCIONES INHERENTES A LA NÓMINA | B151: 9093833000 | C151: 3512245201 | D151: 3354600804 | E151: 3354600804 | F151: 5581587799 | G151: 38.62227513 | H151: 36.88874432 | I151: 36.88874432
A152: 01-01-03-- REMUNERACIONES NO CONSTITUTIVAS DE FACTOR SALARIAL | B152: 2201214000 | C152: 984156040 | D152: 984016981 | E152: 984016981 | F152: 1217057960 | G152: 44.70969383 | H152: 44.70337645 | I152: 44.70337645
A153: Adquisición de Bienes y Servicios | B153: 33513161000 | C153: 1.619179094e+10 | D153: 9407332379 | E153: 9405796023 | F153: 1.732137006e+10 | G153: 48.31472311 | H153: 28.07056123 | I153: 28.06597689
A154: 02---- ADQUISICIÓN DE BIENES Y SERVICIOS | B154: 33513161000 | C154: 1.619179094e+10 | D154: 9407332379 | E154: 9405796023 | F154: 1.732137006e+10 | G154: 48.31472311 | H154: 28.07056123 | I154: 28.06597689
A155: Transferencias | B155: 4215672000 | C155: 37279198 | D155: 29764669 | E155: 29764669 | F155: 4178392802 | G155: 0.8843002492 | H155: 0.7060480275 | I155: 0.7060480275
A156: 03-04-02-012- INCAPACIDADES Y LICENCIAS DE MATERNIDAD Y PATERNIDAD (NO DE PENSIONES) | B156: 143556000 | C156: 37279198 | D156: 29764669 | E156: 29764669 | F156: 106276802 | G156: 25.96840118 | H156: 20.73383836 | I156: 20.73383836
A157: 03-10--- SENTENCIAS Y CONCILIACIONES | B157: 4072116000 | C157: 0 | D157: 0 | E157: 0 | F157: 4072116000 | G157: 0 | H157: 0 | I157: 0
A158: Gastos por Tributos, Multas, Sanciones e Intereses de Mora | B158: 2932267000 | C158: 206660020 | D158: 206660020 | E158: 206660020 | F158: 2725606980 | G158: 7.047789986 | H158: 7.047789986 | I158: 7.047789986
A159: 08-01--- IMPUESTOS | B159: 206755000 | C159: 206660020 | D159: 206660020 | E159: 206660020 | F159: 94980 | G159: 99.95406157 | H159: 99.95406157 | I159: 99.95406157
A160: 08-04-01-- CUOTA DE FISCALIZACIÓN Y AUDITAJE | B160: 2725512000 | C160: 0 | D160: 0 | E160: 0 | F160: 2725512000 | G160: 0 | H160: 0 | I160: 0
A161: Inversión | B161: 1187087860795 | C161: 5.056473794e+11 | D161: 1.866050556e+11 | E161: 1.865825284e+11 | F161: 6.814404814e+11 | G161: 42.59561538 | H161: 15.71956565 | I161: 15.71766797
A162: A-Inversión | B162: 1187087860795 | C162: 5.056473794e+11 | D162: 1.866050556e+11 | E162: 1.865825284e+11 | F162: 6.814404814e+11 | G162: 42.59561538 | H162: 15.71956565 | I162: 15.71766797
A163: 1799-1100-9-53105B- 5. CONVERGENCIA REGIONAL / B. ENTIDADES PÚBLICAS TERRITORIALES Y NACIONALES FORTALECIDAS | B163: 3746829698 | C163: 2235510232 | D163: 1029238714 | E163: 1029238714 | F163: 1511319466 | G163: 59.664047 | H163: 27.46958888 | I163: 27.46958888
A164: 1704-1100-21-10106A- 1. ORDENAMIENTO DEL TERRITORIO ALREDEDOR DEL AGUA Y JUSTICIA AMBIENTAL / A. ACCESO Y FORMALIZACIÓN DE LA PROPIEDAD | B164: 13000000000 | C164: 6215148316 | D164: 3649311025 | E164: 3649311025 | F164: 6784851684 | G164: 47.8088332 | H164: 28.07162327 | I164: 28.07162327
A165: 1704-1100-21-53105B- 5. CONVERGENCIA REGIONAL / B. ENTIDADES PÚBLICAS TERRITORIALES Y NACIONALES FORTALECIDAS | B165: 9480978191 | C165: 1467118812 | D165: 907418139 | E165: 907418139 | F165: 8013859379 | G165: 15.47434012 | H165: 9.570933723 | I165: 9.570933723
A166: 1704-1100-22-10106A- 1. ORDENAMIENTO DEL TERRITORIO ALREDEDOR DEL AGUA Y JUSTICIA AMBIENTAL / A. ACCESO Y FORMALIZACIÓN DE LA PROPIEDAD | B166: 17235416613 | C166: 8467138400 | D166: 4340001988 | E166: 4340001988 | F166: 8768278213 | G166: 49.12639242 | H166: 25.18071994 | I166: 25.18071994
A167: 1704-1100-23-10106A- 1. ORDENAMIENTO DEL TERRITORIO ALREDEDOR DEL AGUA Y JUSTICIA AMBIENTAL / A. ACCESO Y FORMALIZACIÓN DE LA PROPIEDAD | B167: 187341484921 | C167: 8.912111506e+10 | D167: 4.400766064e+10 | E167: 4.400488753e+10 | F167: 9.822036986e+10 | G167: 47.57147895 | H167: 23.49061163 | I167: 23.48913139
A168: 1704-1100-25-10106A- 1. ORDENAMIENTO DEL TERRITORIO ALREDEDOR DEL AGUA Y JUSTICIA AMBIENTAL / A. ACCESO Y FORMALIZACIÓN DE LA PROPIEDAD | B168: 700000000000 | C168: 3.042379106e+11 | D168: 1.094360854e+11 | E168: 1.094163313e+11 | F168: 3.957620894e+11 | G168: 43.46255866 | H168: 15.63372648 | I168: 15.63090447
A169: 1799-1100-10-53105B- 5. CONVERGENCIA REGIONAL / B. ENTIDADES PÚBLICAS TERRITORIALES Y NACIONALES FORTALECIDAS | B169: 8992391276 | C169: 6934729720 | D169: 3145133327 | E169: 3145133327 | F169: 2057661556 | G169: 77.11774885 | H169: 34.97549462 | I169: 34.97549462
A170: 1702-1100-1-10106A- 1. ORDENAMIENTO DEL TERRITORIO ALREDEDOR DEL AGUA Y JUSTICIA AMBIENTAL / A. ACCESO Y FORMALIZACIÓN DE LA PROPIEDAD - [PREVIO CONCEPTO DNP] | B170: 22480978191 | C170: 186353596 | D170: 67395311 | E170: 67395311 | F170: 22294624595 | G170: 0.8289390009 | H170: 0.2997881606 | I170: 0.2997881606
A171: 1704-1100-26-10106A- 1. ORDENAMIENTO DEL TERRITORIO ALREDEDOR DEL AGUA Y JUSTICIA AMBIENTAL / A. ACCESO Y FORMALIZACIÓN DE LA PROPIEDAD | B171: 149873187937 | C171: 6.79577752e+10 | D171: 1.365855716e+10 | E171: 1.365855716e+10 | F171: 8.191541274e+10 | G171: 45.3435175 | H171: 9.113409377 | I171: 9.113409377
A172: 1704-1100-27-10106A- 1. ORDENAMIENTO DEL TERRITORIO ALREDEDOR DEL AGUA Y JUSTICIA AMBIENTAL / A. ACCESO Y FORMALIZACIÓN DE LA PROPIEDAD | B172: 74936593968 | C172: 1.88245794e+10 | D172: 6364253952 | E172: 6364253952 | F172: 5.611201457e+10 | G172: 25.12067657 | H172: 8.49285191 | I172: 8.49285191
A173: 171800 Agencia de Desarrollo Rural - ADR | B173: 546994545073 | C173: 2.316069247e+11 | D173: 8.297471041e+10 | E173: 8.225571286e+10 | F173: 3.153876204e+11 | G173: 42.34172475 | H173: 15.16920254 | I173: 15.03775743
A174: Funcionamiento | B174: 51717951000 | C174: 2.48537555e+10 | D174: 1.65891446e+10 | E174: 1.656053767e+10 | F174: 2.68641955e+10 | G174: 48.05634218 | H174: 32.07618298 | I174: 32.02086963
A175: Gastos de Personal | B175: 21716594000 | C175: 6793015052 | D175: 6793015052 | E175: 6793015052 | F175: 14923578948 | G175: 31.28029677 | H175: 31.28029677 | I175: 31.28029677
A176: 01-01-01-- SALARIO | B176: 15681094000 | C176: 4299805040 | D176: 4299805040 | E176: 4299805040 | F176: 11381288960 | G176: 27.42031289 | H176: 27.42031289 | I176: 27.42031289
A177: 01-01-02-- CONTRIBUCIONES INHERENTES A LA NÓMINA | B177: 4650000000 | C177: 1647508619 | D177: 1647508619 | E177: 1647508619 | F177: 3002491381 | G177: 35.43029288 | H177: 35.43029288 | I177: 35.43029288
A178: 01-01-03-- REMUNERACIONES NO CONSTITUTIVAS DE FACTOR SALARIAL | B178: 1385500000 | C178: 845701393 | D178: 845701393 | E178: 845701393 | F178: 539798607 | G178: 61.03943652 | H178: 61.03943652 | I178: 61.03943652
A179: Adquisición de Bienes y Servicios | B179: 24944596000 | C179: 1.781858395e+10 | D179: 9558389618 | E179: 9529782686 | F179: 7126012048 | G179: 71.43264197 | H179: 38.31847835 | I179: 38.20379647
A180: 02---- ADQUISICIÓN DE BIENES Y SERVICIOS | B180: 24944596000 | C180: 1.781858395e+10 | D180: 9558389618 | E180: 9529782686 | F180: 7126012048 | G180: 71.43264197 | H180: 38.31847835 | I180: 38.20379647
A181: Transferencias | B181: 2734761000 | C181: 53075987 | D181: 53075987 | E181: 53075987 | F181: 2681685013 | G181: 1.940790694 | H181: 1.940790694 | I181: 1.940790694
A182: 03-04-02-012- INCAPACIDADES Y LICENCIAS DE MATERNIDAD Y PATERNIDAD (NO DE PENSIONES) | B182: 145545000 | C182: 53075987 | D182: 53075987 | E182: 53075987 | F182: 92469013 | G182: 36.46706311 | H182: 36.46706311 | I182: 36.46706311
A183: 03-10--- SENTENCIAS Y CONCILIACIONES | B183: 2589216000 | C183: 0 | D183: 0 | E183: 0 | F183: 2589216000 | G183: 0 | H183: 0 | I183: 0
A184: Gastos por Tributos, Multas, Sanciones e Intereses de Mora | B184: 2322000000 | C184: 189080508 | D184: 184663942 | E184: 184663942 | F184: 2132919492 | G184: 8.143002067 | H184: 7.952796813 | I184: 7.952796813
A185: 08-01--- IMPUESTOS | B185: 258000000 | C185: 189080508 | D185: 184663942 | E185: 184663942 | F185: 68919492 | G185: 73.2870186 | H185: 71.57517132 | I185: 71.57517132
A186: 08-04-01-- CUOTA DE FISCALIZACIÓN Y AUDITAJE | B186: 2064000000 | C186: 0 | D186: 0 | E186: 0 | F186: 2064000000 | G186: 0 | H186: 0 | I186: 0
A187: Inversión | B187: 495276594073 | C187: 2.067531692e+11 | D187: 6.638556581e+10 | E187: 6.569517519e+10 | F187: 2.885234249e+11 | G187: 41.74499091 | H187: 13.40373573 | I187: 13.26434077
A188: A-Inversión | B188: 495276594073 | C188: 2.067531692e+11 | D188: 6.638556581e+10 | E188: 6.569517519e+10 | F188: 2.885234249e+11 | G188: 41.74499091 | H188: 13.40373573 | I188: 13.26434077
A189: 1709-1100-6-30101B- 3. DERECHO HUMANO A LA ALIMENTACIÓN / B. PROVEER ACCESO A FACTORES PRODUCTIVOS EN FORMA OPORTUNA Y SIMULTÁNEA | B189: 39606116488 | C189: 17999032329 | D189: 4268557984 | E189: 4225731369 | F189: 21607084159 | G189: 45.44508254 | H189: 10.77752217 | I189: 10.66939085
A190: 1702-1100-14-30101B- 3. DERECHO HUMANO A LA ALIMENTACIÓN / B. PROVEER ACCESO A FACTORES PRODUCTIVOS EN FORMA OPORTUNA Y SIMULTÁNEA | B190: 226234436826 | C190: 61480286121 | D190: 16219870111 | E190: 16039685432 | F190: 164754150705 | G190: 27.17547646 | H190: 7.169496536 | I190: 7.08985142
A191: 1708-1100-5-30101C- 3. DERECHO HUMANO A LA ALIMENTACIÓN / C. SISTEMAS TERRITORIALES DE INNOVACIÓN, FORTALECIMIENTO DEL SISTEMA NACIONAL DE INNOVACIÓN AGROPECUARIA (SNIA) Y MISIÓN DE INVESTIGACIÓN E INNOVACIÓN | B191: 12504911819 | C191: 10679211788 | D191: 3390976603 | E191: 3347976603 | F191: 1825700031 | G191: 85.4001367 | H191: 27.11715726 | I191: 26.77329238
A192: 1708-1100-5-30101D- 3. DERECHO HUMANO A LA ALIMENTACIÓN / D. EXTENSIÓN TECNOLÓGICA AGROINDUSTRIA | B192: 9825287857 | C192: 8043456457 | D192: 3196517974 | E192: 3196517974 | F192: 1781831400 | G192: 81.86484278 | H192: 32.5335809 | I192: 32.5335809
A193: 1709-1100-7-30101B- 3. DERECHO HUMANO A LA ALIMENTACIÓN / B. PROVEER ACCESO A FACTORES PRODUCTIVOS EN FORMA OPORTUNA Y SIMULTÁNEA | B193: 22000000000 | C193: 1128614679 | D193: 336519592 | E193: 332069592 | F193: 20871385321 | G193: 5.130066723 | H193: 1.529634509 | I193: 1.509407236
A194: 1799-1100-15-53105B- 5. CONVERGENCIA REGIONAL / B. ENTIDADES PÚBLICAS TERRITORIALES Y NACIONALES FORTALECIDAS | B194: 11326892216 | C194: 5864385292 | D194: 2226531935 | E194: 2128781935 | F194: 5462506924 | G194: 51.77400102 | H194: 19.65704178 | I194: 18.79405131
A195: 1799-1100-16-53105B- 5. CONVERGENCIA REGIONAL / B. ENTIDADES PÚBLICAS TERRITORIALES Y NACIONALES FORTALECIDAS | B195: 10273349444 | C195: 2842778875 | D195: 1154631420 | E195: 1154631420 | F195: 7430570569 | G195: 27.67139277 | H195: 11.23909419 | I195: 11.23909419
A196: 1702-1100-16-30101B- 3. DERECHO HUMANO A LA ALIMENTACIÓN / B. PROVEER ACCESO A FACTORES PRODUCTIVOS EN FORMA OPORTUNA Y SIMULTÁNEA | B196: 58882781587 | C196: 4.5872769e+10 | D196: 12677594194 | E196: 12524342440 | F196: 1.301001259e+10 | G196: 77.90523437 | H196: 21.53022302 | I196: 21.2699572
A197: 1702-1100-17-30201A- 3. DERECHO HUMANO A LA ALIMENTACIÓN / A. DESARROLLO DE REDES AGROLOGÍSTICAS | B197: 104622817836 | C197: 52842634634 | D197: 2.2914366e+10 | E197: 2.274543843e+10 | F197: 51780183202 | G197: 50.50775321 | H197: 21.9018819 | I197: 21.74041848
A198: AMBIENTE Y DESARROLLO SOSTENIBLE | B198: 1796378366946 | C198: 9.495088331e+11 | D198: 4.785041569e+11 | E198: 4.77126231e+11 | F198: 8.468695339e+11 | G198: 52.85683966 | H198: 26.63715872 | I198: 26.56045295
A199: 320101 Ministerio de Ambiente y Desarrollo Sostenible | B199: 969170933491 | C199: 4.10901247e+11 | D199: 1.300550464e+11 | E199: 1.30041153e+11 | F199: 5.582696865e+11 | G199: 42.3971905 | H199: 13.41920624 | I199: 13.41777271
A200: Funcionamiento | B200: 203525400000 | C200: 1.142708914e+11 | D200: 7.518717333e+10 | E200: 7.518717333e+10 | F200: 8.925450856e+10 | G200: 56.14576433 | H200: 36.94240293 | I200: 36.94240293
A201: Gastos de Personal | B201: 63070000000 | C201: 19212174867 | D201: 19188703356 | E201: 19188703356 | F201: 43857825133 | G201: 30.46166936 | H201: 30.42445435 | I201: 30.42445435
A202: 01-01-01-- SALARIO | B202: 41616884000 | C202: 13544863181 | D202: 13544863181 | E202: 13544863181 | F202: 28072020819 | G202: 32.54655774 | H202: 32.54655774 | I202: 32.54655774
A203: 01-01-02-- CONTRIBUCIONES INHERENTES A LA NÓMINA | B203: 15068316000 | C203: 4252905898 | D203: 4229434387 | E203: 4229434387 | F203: 10815410102 | G203: 28.22416186 | H203: 28.06839455 | I203: 28.06839455
A204: 01-01-03-- REMUNERACIONES NO CONSTITUTIVAS DE FACTOR SALARIAL | B204: 6384800000 | C204: 1414405788 | D204: 1414405788 | E204: 1414405788 | F204: 4970394212 | G204: 22.15270311 | H204: 22.15270311 | I204: 22.15270311
... 4709 more rows

Sheet CUA8
A5: Cuadro No. 8 Rezago presupuestal del Presupuesto General de la Nación de 2025 ejecutado en 2026
A6: =+'CUA1'!A6 -> Acumulada a Mayo 2026
A7: Miles de millones de pesos corrientes
B8: Concepto | C8: Rezago | D8: Pago | E8: Rezago por pagar | F8: Ejecución %
F9: Pago/Rezago
C10: (1) | D10: (2) | E10: (3)=(1-2) | F10: (4)=(2/1)
A11: I. | B11: FUNCIONAMIENTO | C11: 21855.04171 | D11: 14040.79357 | E11: 7814.248143 | F11: 64.24510076
B12: Gastos de Personal | C12: 763.0292141 | D12: 681.0102988 | E12: 82.01891524 | F12: 89.25088139
B13: Adquisición de Bienes y Servicios | C13: 4602.687888 | D13: 3773.19841 | E13: 829.4894785 | F13: 81.97815062
B14: Transferencias | C14: 16139.38668 | D14: 9317.336982 | E14: 6822.049694 | F14: 57.73042786
B15: Gastos de Comercialización y Producción | C15: 284.6964725 | D15: 212.0164255 | E15: 72.68004702 | F15: 74.47104055
B16: Adquisición de Activos Financieros | C16: 13.79140674 | D16: 9.406117582 | E16: 4.385289161 | F16: 68.20274217
B17: Disminución de Pasivos | C17: 34.86481846 | D17: 32.01003759 | E17: 2.854780877 | F17: 91.81185791
B18: Gastos por Tributos, Multas, Sanciones e Intereses de Mora | C18: 16.58523863 | D18: 15.81530037 | E18: 0.7699382592 | F18: 95.35768959
A19: II. | B19: SERVICIO DE LA DEUDA | C19: 580.738177 | D19: 559.8882242 | E19: 20.84995278 | F19: 96.40974993
B20: Servicio de la Deuda Pública Externa | C20: 1.808706582 | D20: 1.55567893 | E20: 0.2530276518 | F20: 86.01057494
B21: Principal | C21: 0 | D21: 0 | E21: 0 | F21: 0
B22: Intereses | C22: 0 | D22: 0 | E22: 0 | F22: 0
B23: Comisiones y Otros Gastos | C23: 1.808706582 | D23: 1.55567893 | E23: 0.2530276518 | F23: 86.01057494
B24: Servicio de la Deuda Pública Interna | C24: 578.9294704 | D24: 558.3325453 | E24: 20.59692513 | F24: 96.44223931
B25: Principal | C25: 1.677465234 | D25: 1.677465234 | E25: 0 | F25: 100
B26: Intereses | C26: 0.02206171289 | D26: 0.02206171289 | E26: 0 | F26: 100
B27: Comisiones y Otros Gastos | C27: 56.94758831 | D27: 36.35066317 | E27: 20.59692513 | F27: 63.83178684
B28: Fondo de Contingencias | C28: 520.2823552 | D28: 520.2823552 | E28: 0 | F28: 100
A29: III. | B29: INVERSIÓN | C29: 26323.48467 | D29: 13778.04343 | E29: 12545.44124 | F29: 52.34125954
A30: IV. | B30: TOTAL (I + II + III) | C30: 48759.26456 | D30: 28378.72522 | E30: 20380.53933 | F30: 58.20170891
A31: V. | B31: TOTAL SIN DEUDA (I + III) | C31: 48178.52638 | D31: 27818.837 | E31: 20359.68938 | F31: 57.74115377
A32: Fuente: Ministerio de Hacienda y Crèdito Pùblico. Ejecución de ingresos y gastos de las entidades que conforman el Presupuesto General de la Nación

Sheet CUA9
A5: Cuadro No. 9 Reservas presupuestales del PGN de 2025 que se ejecutan en el 2026
A6: =+'CUA1'!A6 -> Acumulada a Mayo 2026
A7: =+'CUA1'!A7 -> Miles de millones de pesos corrientes
B8: Concepto | C8: Reservas Presupuestales | D8: Pago | E8: Reservas por pagar | F8: Ejecución %
C9: presupuestal | F9: Pago/Reservas
C10: (1) | D10: (2) | E10: (3)=(1-2) | F10: (4)=(2/1)
A11: I. | B11: FUNCIONAMIENTO | C11: 21492.38047 | D11: 13681.72043 | E11: 7810.660037 | F11: 63.65846935 | H11: FUNCIONAMIENTO | I11: 17983.38556 | J11: 7641.612973 | K11: =+I11-C11 -> -3508.994911 | L11: =+J11-D11 -> -6040.10746
B12: Gastos de Personal | C12: 734.7028622 | D12: 652.7324012 | E12: 81.97046108 | F12: 88.8430459 | H12: Gastos de Personal | I12: 472.1833077 | J12: 411.8682172 | K12: =+I12-C12 -> -262.5195545 | L12: -240.8641839
B13: Adquisición de Bienes y Servicios | C13: 4498.924073 | D13: 3669.636065 | E13: 829.2880078 | F13: 81.56697036 | H13: Adquisición de Bienes y Servicios | I13: 4195.062752 | J13: 1994.877709 | K13: -303.8613205 | L13: -1674.758356
B14: Transferencias | C14: 16078.21322 | D14: 9258.84519 | E14: 6819.368034 | F14: 57.58628189 | H14: Transferencias | I14: 13160.48377 | J14: 5194.59197 | K14: -2917.729451 | L14: -4064.25322
B15: Gastos de Comercialización y Producción | C15: 130.7168925 | D15: 58.53386986 | E15: 72.18302264 | F15: 44.77911672 | H15: Gastos de Comercialización y Producción | I15: 137.2457628 | J15: 25.8311096 | K15: 6.528870334 | L15: -32.70276026
B16: Adquisición de Activos Financieros | C16: 12.99309714 | D16: 8.767239982 | E16: 4.225857161 | F16: 67.47613664 | H16: Adquisición de Activos Financieros | I16: 4.658803368 | J16: 1.947258222 | K16: -8.334293775 | L16: -6.81998176
B17: Disminución de Pasivos | C17: 34.53475169 | D17: 31.68003558 | E17: 2.854716108 | F17: 91.73378707 | H17: Disminución de Pasivos | I17: 10.58143075 | J17: 9.907085626 | K17: -23.95332095 | L17: -21.77294996
B18: Gastos por Tributos, Multas, Sanciones e Intereses de Mora | C18: 2.295570172 | D18: 1.525631913 | E18: 0.7699382592 | F18: 66.45982473 | H18: Gastos por Tributos, Multas, Sanciones e Intereses de Mora | I18: 3.169729768 | J18: 2.589623018 | K18: 0.8741595962 | L18: 1.063991105
A19: II. | B19: SERVICIO DE LA DEUDA | C19: 580.738177 | D19: 559.8882242 | E19: 20.84995278 | F19: 96.40974993 | H19: SERVICIO DE LA DEUDA | I19: 7773.360726 | J19: 3030.781278 | K19: 7192.622549 | L19: 2470.893054
B20: Servicio de la Deuda Pública Externa | C20: 1.808706582 | D20: 1.55567893 | E20: 0.2530276518 | F20: 86.01057494 | H20: Servicio de la Deuda Pública Externa | I20: 4028.158345 | J20: 3007.499599 | K20: 4026.349639 | L20: 3005.94392
B21: Principal | C21: 0 | D21: 0 | E21: 0 | F21: 0 | H21: Principal | I21: 1770.995202 | J21: 1013.069517 | K21: 1770.995202 | L21: 1013.069517
B22: Intereses | C22: 0 | D22: 0 | E22: 0 | F22: 0 | H22: Intereses | I22: 2245.312495 | J22: 1992.455366 | K22: 2245.312495 | L22: 1992.455366
B23: Comisiones y Otros Gastos | C23: 1.808706582 | D23: 1.55567893 | E23: 0.2530276518 | F23: 86.01057494 | H23: Comisiones y Otros Gastos | I23: 11.85064825 | J23: 1.974715705 | K23: 10.04194167 | L23: 0.419036775
B24: Servicio de la Deuda Pública Interna | C24: 578.9294704 | D24: 558.3325453 | E24: 20.59692513 | F24: 96.44223931 | H24: Servicio de la Deuda Pública Interna | I24: 3745.202381 | J24: 23.28167934 | K24: 3166.27291 | L24: -535.050866
B25: Principal | C25: 1.677465234 | D25: 1.677465234 | E25: 0 | F25: 100 | H25: Principal | I25: 3460.391126 | J25: 1.912810341 | K25: 3458.71366 | L25: 0.2353451067
B26: Intereses | C26: 0.02206171289 | D26: 0.02206171289 | E26: 0 | F26: 100 | H26: Intereses | I26: 221.4578363 | J26: 0.01063211703 | K26: 221.4357746 | L26: -0.01142959586
B27: Comisiones y Otros Gastos | C27: 56.94758831 | D27: 36.35066317 | E27: 20.59692513 | F27: 63.83178684 | H27: Comisiones y Otros Gastos | I27: 63.35341876 | J27: 21.35823688 | K27: 6.405830454 | L27: -14.9924263
B28: Fondo de Contingencias | C28: 520.2823552 | D28: 520.2823552 | E28: 0 | F28: 100 | H28: Fondo de contingencias | I28: 0 | J28: 0 | K28: -520.2823552 | L28: -520.2823552
A29: III. | B29: INVERSIÓN | C29: 25822.29835 | D29: 13286.70431 | E29: 12535.59404 | F29: 51.45438306 | H29: INVERSIÓN | I29: 35807.45166 | J29: 11011.49149 | K29: 9985.153305 | L29: -2275.212812
A30: IV. | B30: TOTAL (I + II + III) | C30: 47895.417 | D30: 27528.31296 | E30: 20367.10403 | F30: 57.47588118 | H30: TOTAL (I + II + III) | I30: 61564.19794 | J30: 21683.88575 | K30: 13668.78094 | L30: -5844.427218
A31: V. | B31: TOTAL SIN DEUDA (I + III) | C31: 47314.67882 | D31: 26968.42474 | E31: 20346.25408 | F31: 56.99800868 | H31: TOTAL SIN DEUDA (I + III) | I31: 53790.83722 | J31: 18653.10447 | K31: 6476.158394 | L31: -8315.320272
A32: Fuente: Dirección General del Presupuesto Público Nacional- Subdirección de Análisis y Consolidación Presupuestal | B32: Fuente: Ministerio de Hacienda y Crèdito Pùblico. Ejecución de ingresos y gastos de las entidades que conforman el Presupuesto General de la Nación

Sheet CUA10
A5: Cuadro No. 10 Cuentas por pagar del PGN de 2025 que se ejecutan en el 2026
A6: =+'CUA1'!A6 -> Acumulada a Mayo 2026
A7: Miles de millones de pesos corrientes
B8: Concepto | C8: Cuentas por Pagar | D8: Pago | E8: Cuentas sin pagar | F8: Ejecución %
F9: Pago/Cuentas
C10: (1) | D10: (2) | E10: (3)=(1-2) | F10: (4)=(2/1)
A11: I. | B11: FUNCIONAMIENTO | C11: 362.6612436 | D11: 359.0731378 | E11: 3.588105802 | F11: 99.0106178 | H11: 408.4120593 | I11: 406.2075617 | J11: =+H11-C11 -> 45.75081569 | K11: =+I11-D11 -> 47.13442383
B12: Gastos de Personal | C12: 28.32635183 | D12: 28.27789767 | E12: 0.04845415787 | F12: 99.82894318 | H12: 33.03304575 | I12: 33.01139416 | J12: =+H12-C12 -> 4.706693916 | K12: 4.733496486
B13: Adquisición de Bienes y Servicios | C13: 103.7638156 | D13: 103.5623449 | E13: 0.2014707271 | F13: 99.8058372 | H13: 198.9744317 | I13: 198.9727557 | J13: 95.21061614 | K13: 95.4104108
B14: Transferencias | C14: 61.17345137 | D14: 58.4917916 | E14: 2.681659768 | F14: 95.61630134 | H14: 62.47458135 | I14: 60.39344836 | J14: 1.301129989 | K14: 1.901656764
B15: Gastos de Comercialización y Producción | C15: 153.97958 | D15: 153.4825556 | E15: 0.49702438 | F15: 99.6772141 | H15: 107.6569445 | I15: 107.6569445 | J15: -46.32263548 | K15: -45.8256111
B16: Adquisición de Activos Financieros | C16: 0.7983096 | D16: 0.6388776 | E16: 0.159432 | F16: 80.02880086 | H16: 4.3205215 | I16: 4.2205215 | J16: 3.5222119 | K16: 3.5816439
B17: Disminución de Pasivos | C17: 0.330066773 | D17: 0.330002004 | E17: 6.4769e-05 | F17: 99.980377 | H17: 1.60507165 | I17: 1.60503464 | J17: 1.275004877 | K17: 1.275032636
B18: Gastos por Tributos, Multas, Sanciones e Intereses de Mora | C18: 14.28966846 | D18: 14.28966846 | E18: 0 | F18: 100 | H18: 0.34746281 | I18: 0.34746281 | J18: -13.94220565 | K18: -13.94220565
A19: II. | B19: SERVICIO DE LA DEUDA | C19: 0 | D19: 0 | E19: 0 | F19: 0 | H19: 6.736498228 | I19: 6.736498228 | J19: 6.736498228 | K19: 6.736498228
B20: Servicio de la Deuda Pública Externa | C20: 0 | D20: 0 | E20: 0 | F20: 0 | H20: 0 | I20: 0 | J20: 0 | K20: 0
B21: Principal | C21: 0 | D21: 0 | E21: 0 | F21: 0 | H21: 0 | I21: 0 | J21: 0 | K21: 0
B22: Intereses | C22: 0 | D22: 0 | E22: 0 | F22: 0 | H22: 0 | I22: 0 | J22: 0 | K22: 0
B23: Comisiones y Otros Gastos | C23: 0 | D23: 0 | E23: 0 | F23: 0 | H23: 0 | I23: 0 | J23: 0 | K23: 0
B24: Servicio de la Deuda Pública Interna | C24: 0 | D24: 0 | E24: 0 | F24: 0 | H24: 6.736498228 | I24: 6.736498228 | J24: 6.736498228 | K24: 6.736498228
B25: Principal | C25: 0 | D25: 0 | E25: 0 | F25: 0 | H25: 0 | I25: 0 | J25: 0 | K25: 0
B26: Intereses | C26: 0 | D26: 0 | E26: 0 | F26: 0 | H26: 0 | I26: 0 | J26: 0 | K26: 0
B27: Comisiones y Otros Gastos | C27: 0 | D27: 0 | E27: 0 | F27: 0 | H27: 0 | I27: 0 | J27: 0 | K27: 0
B28: Fondo de Contingencias | C28: 0 | D28: 0 | E28: 0 | F28: 0 | H28: 6.736498228 | I28: 6.736498228 | J28: 6.736498228 | K28: 6.736498228
A29: III. | B29: INVERSIÓN | C29: 501.186316 | D29: 491.3391218 | E29: 9.847194187 | F29: 98.03522286 | H29: 621.5026668 | I29: 621.4521532 | J29: 120.3163508 | K29: 130.1130314
A30: IV. | B30: TOTAL (I + II + III) | C30: 863.8475596 | D30: 850.4122597 | E30: 13.43529999 | F30: 98.44471402 | H30: 1036.651224 | I30: 1034.396213 | J30: 172.8036647 | K30: 183.9839535
A31: V. | B31: TOTAL SIN DEUDA (I + III) | C31: 863.8475596 | D31: 850.4122597 | E31: 13.43529999 | F31: 98.44471402 | H31: 1029.914726 | I31: 1027.659715 | J31: 166.0671665 | K31: 177.2474552
A32: Fuente: Dirección General del Presupuesto Público Nacional- Subdirección de Análisis y Consolidación Presupuestal | B32: Fuente: Ministerio de Hacienda y Crèdito Pùblico. Ejecución de ingresos y gastos de las entidades que conforman el Presupuesto General de la Nación
